Service Area,Service Area Categorisation,Service Division Categorisation,Responsible Unit,Expenses Types,Detailed Expenses Type,Expense Code,Narrative,Invoice Date,Payment Date,Amount,Capital/Revenue,Supplier Name
Schools Total,School Group 2 � Pupil Capacity 144-314,MCC Schools,Usk CiW Primary School (VC),Supplies & Services,"Equipment, Furniture and Materials",Furniture Purchases / Replacement,,10/11/2023,01/12/2023,599,,Cosy
Schools Total,School Group 2 � Pupil Capacity 144-314,MCC Schools,Usk CiW Primary School (VC),Supplies & Services,"Equipment, Furniture and Materials",Furniture Purchases / Replacement,,10/11/2023,01/12/2023,39,,Cosy
"Enterprise, Housing & Community Animation",General Fund Housing,Communities & Place,Homelessness,Supplies & Services,Services,Homelessness Bed & Breakfast Accomodation,,21/11/2023,01/12/2023,1120,,The Mayhill Hotel
"Enterprise, Housing & Community Animation",General Fund Housing,Communities & Place,Homelessness,Supplies & Services,Services,Homelessness Bed & Breakfast Accomodation,,21/11/2023,01/12/2023,224,,The Mayhill Hotel
"Enterprise, Housing & Community Animation",General Fund Housing,Communities & Place,Homelessness,Supplies & Services,Services,Homelessness Bed & Breakfast Accomodation,,21/11/2023,01/12/2023,-224,,The Mayhill Hotel
"Enterprise, Housing & Community Animation",General Fund Housing,Communities & Place,Homelessness,Supplies & Services,Services,Homelessness Bed & Breakfast Accomodation,,21/11/2023,01/12/2023,1120,,The Mayhill Hotel
"Enterprise, Housing & Community Animation",General Fund Housing,Communities & Place,Homelessness,Supplies & Services,Services,Homelessness Bed & Breakfast Accomodation,,21/11/2023,01/12/2023,224,,The Mayhill Hotel
"Enterprise, Housing & Community Animation",General Fund Housing,Communities & Place,Homelessness,Supplies & Services,Services,Homelessness Bed & Breakfast Accomodation,,21/11/2023,01/12/2023,-224,,The Mayhill Hotel
"Enterprise, Housing & Community Animation",General Fund Housing,Communities & Place,Homelessness,Supplies & Services,Services,Homelessness Bed & Breakfast Accomodation,,16/11/2023,24/11/2023,2090,,REDACTED PERSONAL DATA
"Enterprise, Housing & Community Animation",General Fund Housing,Communities & Place,Homelessness,Supplies & Services,Services,Homelessness Bed & Breakfast Accomodation,,16/11/2023,24/11/2023,1120,,The Mayhill Hotel
"Enterprise, Housing & Community Animation",General Fund Housing,Communities & Place,Homelessness,Supplies & Services,Services,Homelessness Bed & Breakfast Accomodation,,16/11/2023,24/11/2023,-224,,The Mayhill Hotel
"Enterprise, Housing & Community Animation",General Fund Housing,Communities & Place,Homelessness,Supplies & Services,Services,Homelessness Bed & Breakfast Accomodation,,16/11/2023,24/11/2023,224,,The Mayhill Hotel
"Placemaking, Highways & Flooding",Highways Dev & Car Parks,Communities & Place,Traffic & Road Safety,Supplies & Services,"Equipment, Furniture and Materials",Advertising,,17/11/2023,23/11/2023,420,,Tindle Newspapers Wales & The Borders Ltd
"Placemaking, Highways & Flooding",Highways Dev & Car Parks,Communities & Place,Traffic & Road Safety,Supplies & Services,"Equipment, Furniture and Materials",Advertising,,17/11/2023,23/11/2023,420,,Tindle Newspapers Wales & The Borders Ltd
"Placemaking, Highways & Flooding",Highways Dev & Car Parks,Communities & Place,Traffic & Road Safety,Supplies & Services,"Equipment, Furniture and Materials",Advertising,,17/11/2023,23/11/2023,420,,Tindle Newspapers Wales & The Borders Ltd
"Placemaking, Highways & Flooding",Highways Dev & Car Parks,Communities & Place,Traffic & Road Safety,Supplies & Services,"Equipment, Furniture and Materials",Advertising,,17/11/2023,23/11/2023,420,,Tindle Newspapers Wales & The Borders Ltd
"Placemaking, Highways & Flooding",Highways Dev & Car Parks,Communities & Place,Traffic & Road Safety,Supplies & Services,"Equipment, Furniture and Materials",Advertising,,17/11/2023,23/11/2023,420,,Tindle Newspapers Wales & The Borders Ltd
"Placemaking, Highways & Flooding",Highways Dev & Car Parks,Communities & Place,Traffic & Road Safety,Supplies & Services,"Equipment, Furniture and Materials",Advertising,,17/11/2023,23/11/2023,420,,Tindle Newspapers Wales & The Borders Ltd
"Placemaking, Highways & Flooding",Highways Dev & Car Parks,Communities & Place,Traffic & Road Safety,Supplies & Services,"Equipment, Furniture and Materials",Advertising,,17/11/2023,23/11/2023,420,,Tindle Newspapers Wales & The Borders Ltd
"Placemaking, Highways & Flooding",Highways Dev & Car Parks,Communities & Place,Traffic & Road Safety,Supplies & Services,"Equipment, Furniture and Materials",Advertising,,17/11/2023,23/11/2023,420,,Tindle Newspapers Wales & The Borders Ltd
"Placemaking, Highways & Flooding",Highways Dev & Car Parks,Communities & Place,Traffic & Road Safety,Supplies & Services,"Equipment, Furniture and Materials",Advertising,,17/11/2023,23/11/2023,420,,Tindle Newspapers Wales & The Borders Ltd
"Placemaking, Highways & Flooding",Highways Dev & Car Parks,Communities & Place,Traffic & Road Safety,Supplies & Services,"Equipment, Furniture and Materials",Advertising,,17/11/2023,23/11/2023,420,,Tindle Newspapers Wales & The Borders Ltd
"Placemaking, Highways & Flooding",Highways Dev & Car Parks,Communities & Place,Traffic & Road Safety,Supplies & Services,"Equipment, Furniture and Materials",Advertising,,17/11/2023,23/11/2023,420,,Tindle Newspapers Wales & The Borders Ltd
Schools Total,School Group 7 � Pupil Capacity 501-1800,MCC Schools,King Henry 3-19 School,Supplies & Services,Expenses,Exam Fees (Schools),,26/10/2023,20/11/2023,198.6,,Pearson Education LTD
"Leisure, Youth & Outdoor Adventure",Leisure Services,MonLife Directorate,Monmouth Leisure Centre,Supplies & Services,"Equipment, Furniture and Materials",General Goods For Resale.,,15/11/2023,20/11/2023,250.3,,Splash About International Ltd
"Enterprise, Housing & Community Animation",General Fund Housing,Communities & Place,Homelessness,Supplies & Services,Services,Homelessness Bed & Breakfast Accomodation,,04/11/2023,20/11/2023,44640,,Rock Forge B&B
"Placemaking, Highways & Flooding",Highways Dev & Car Parks,Communities & Place,Traffic & Road Safety,Supplies & Services,"Equipment, Furniture and Materials",Advertising,,27/10/2023,03/11/2023,420,,Tindle Newspapers Wales & The Borders Ltd
"Placemaking, Highways & Flooding",Highways Dev & Car Parks,Communities & Place,Traffic & Road Safety,Supplies & Services,"Equipment, Furniture and Materials",Advertising,,27/10/2023,03/11/2023,420,,Tindle Newspapers Wales & The Borders Ltd
"Placemaking, Highways & Flooding",Highways Dev & Car Parks,Communities & Place,Traffic & Road Safety,Supplies & Services,"Equipment, Furniture and Materials",Advertising,,27/10/2023,03/11/2023,420,,Tindle Newspapers Wales & The Borders Ltd
"Enterprise, Housing & Community Animation",General Fund Housing,Communities & Place,Homelessness,Supplies & Services,Services,Homelessness Bed & Breakfast Accomodation,,09/10/2023,03/11/2023,1120,,The Mayhill Hotel
"Enterprise, Housing & Community Animation",General Fund Housing,Communities & Place,Homelessness,Supplies & Services,Services,Homelessness Bed & Breakfast Accomodation,,09/10/2023,03/11/2023,224,,The Mayhill Hotel
"Enterprise, Housing & Community Animation",General Fund Housing,Communities & Place,Homelessness,Supplies & Services,Services,Homelessness Bed & Breakfast Accomodation,,09/10/2023,03/11/2023,-224,,The Mayhill Hotel
"Enterprise, Housing & Community Animation",General Fund Housing,Communities & Place,Homelessness,Supplies & Services,Services,Homelessness Bed & Breakfast Accomodation,,09/10/2023,03/11/2023,1120,,The Mayhill Hotel
"Enterprise, Housing & Community Animation",General Fund Housing,Communities & Place,Homelessness,Supplies & Services,Services,Homelessness Bed & Breakfast Accomodation,,09/10/2023,03/11/2023,-224,,The Mayhill Hotel
Children Services,Children Services Other,Social Care and Health,Counsel Costs,Supplies & Services,Services,Legal Costs,,07/09/2023,01/11/2023,500,,REDACTED PERSONAL DATA
Children Services,Children Services Other,Social Care and Health,Counsel Costs,Supplies & Services,Services,Legal Costs,,02/10/2023,01/11/2023,920,,REDACTED PERSONAL DATA
Children Services,Children Services Other,Social Care and Health,Counsel Costs,Supplies & Services,Services,Legal Costs,,06/10/2023,01/11/2023,1120,,REDACTED PERSONAL DATA
Children Services,Children Services Other,Social Care and Health,Counsel Costs,Supplies & Services,Services,Legal Costs,,18/10/2023,01/11/2023,1340,,REDACTED PERSONAL DATA
Schools Total,School Group 2 � Pupil Capacity 144-314,MCC Schools,Cantref Primary School,Supplies & Services,"Equipment, Furniture and Materials",Materials & Consumables.,,10/10/2023,08/11/2023,650,,WRU Gwent Rugby Limited
Schools Total,School Group 2 � Pupil Capacity 144-314,MCC Schools,Archbishop Rowan Williams CiW Primary School (VA),Supplies & Services,"Equipment, Furniture and Materials",Materials & Consumables.,,24/10/2023,09/11/2023,24.98,,Amazon Payments UK Limited
Schools Total,School Group 2 � Pupil Capacity 144-314,MCC Schools,Our Lady & St Michael's (OLSM) RC Primary School (VA),Supplies & Services,"Equipment, Furniture and Materials",Materials & Consumables.,,27/10/2023,08/11/2023,490.46,,RM Educational Resources Ltd
Countryside & Culture,Countryside,MonLife Directorate,Green Infrastructure,Premises,Energy Costs,Gas.,,13/11/2023,30/11/2023,83.67,,TOTAL GAS & POWER LIMITED
Schools Total,School Group 2 � Pupil Capacity 144-314,MCC Schools,St Mary�s RC Primary School (VA),Supplies & Services,"Equipment, Furniture and Materials",Materials & Consumables.,,22/11/2023,01/12/2023,5.82,,Amazon Payments UK Limited
Finance,Revenues Department,Resources,Council Tax & NNDR Administration,Supplies & Services,Services,Financial products and services general fees and charges,,22/11/2023,28/11/2023,6.01,,B & S Bailiff Services
Schools Total,SCHGRP3 � School Group 3 � Pupil Capacity 315-500,MCC Schools,The Dell Primary School,Supplies & Services,"Equipment, Furniture and Materials",Materials & Consumables.,,13/10/2023,28/11/2023,113.45,,ESPO
Finance,Revenues Department,Resources,Council Tax & NNDR Administration,Supplies & Services,Services,Financial products and services general fees and charges,,27/11/2023,28/11/2023,155.4,,Marston Holdings Limited
Finance,Revenues Department,Resources,Council Tax & NNDR Administration,Supplies & Services,Services,Financial products and services general fees and charges,,27/11/2023,28/11/2023,-155.4,,Marston Holdings Limited
Finance,Revenues Department,Resources,Council Tax & NNDR Administration,Supplies & Services,Services,Financial products and services general fees and charges,,27/11/2023,28/11/2023,-1757.35,,Marston Holdings Limited
Finance,Revenues Department,Resources,Council Tax & NNDR Administration,Supplies & Services,Services,Financial products and services general fees and charges,,27/11/2023,28/11/2023,1757.35,,Marston Holdings Limited
Schools Total,School Group 2 � Pupil Capacity 144-314,MCC Schools,Archbishop Rowan Williams CiW Primary School (VA),Supplies & Services,"Equipment, Furniture and Materials",Materials & Consumables.,,22/06/2023,20/11/2023,979.84,,ESPO
Children Services,Children Services Other,Social Care and Health,Counsel Costs,Supplies & Services,Services,Legal Costs,,24/10/2023,03/11/2023,450,,REDACTED PERSONAL DATA
"Leisure, Youth & Outdoor Adventure",Leisure Services,MonLife Directorate,Chepstow Leisure Centre,Premises,Energy Costs,Gas.,,13/11/2023,30/11/2023,5870.56,,TOTAL GAS & POWER LIMITED
"Commercial, Corporate & landlord Services",Property Services & Facilities Management,Resources,Usk Accommodation,Premises,Energy Costs,Gas.,,13/11/2023,30/11/2023,3062.39,,TOTAL GAS & POWER LIMITED
Schools Total,School Group 7 � Pupil Capacity 501-1800,MCC Schools,Chepstow School,Premises,Energy Costs,Gas.,,13/11/2023,30/11/2023,6748.88,,TOTAL GAS & POWER LIMITED
Schools Total,School Group 2 � Pupil Capacity 144-314,MCC Schools,Raglan CiW Primary School (VC),Premises,Energy Costs,Gas.,,13/11/2023,30/11/2023,1042.12,,TOTAL GAS & POWER LIMITED
Schools Total,SCHGRP3 � School Group 3 � Pupil Capacity 315-500,MCC Schools,Deri View Primary School,Premises,Energy Costs,Gas.,,13/11/2023,30/11/2023,3226.95,,TOTAL GAS & POWER LIMITED
"Enterprise, Housing & Community Animation",General Fund Housing,Communities & Place,Emergency Accommodation Hostel,Premises,Energy Costs,Gas.,,13/11/2023,30/11/2023,252.66,,TOTAL GAS & POWER LIMITED
Finance & Business Devlopment,Attractions,MonLife Directorate,Caldicot Castle & Country Park,Premises,Energy Costs,Gas.,,13/11/2023,30/11/2023,360.89,,TOTAL GAS & POWER LIMITED
"Commercial, Corporate & landlord Services",Property Services & Facilities Management,Resources,Central Accommodation,Premises,Energy Costs,Gas.,,13/11/2023,30/11/2023,1117.75,,TOTAL GAS & POWER LIMITED
Adult Services,Day Centres,Social Care and Health,My Day,Premises,Energy Costs,Gas.,,13/11/2023,30/11/2023,15.5,,TOTAL GAS & POWER LIMITED
"Policy, Scrutiny & Customer Service",Community Hubs,Chief Executive's Unit,Community Hub - Monmouth,Premises,Energy Costs,Gas.,,13/11/2023,30/11/2023,1091.81,,TOTAL GAS & POWER LIMITED
Schools Total,School Group 2 � Pupil Capacity 144-314,MCC Schools,Rogiet Primary School,Supplies & Services,"Equipment, Furniture and Materials",Materials & Consumables.,,19/10/2023,07/11/2023,41.4,,ESPO
Schools Total,School Group 2 � Pupil Capacity 144-314,MCC Schools,Rogiet Primary School,Supplies & Services,"Equipment, Furniture and Materials",Materials & Consumables.,,23/10/2023,07/11/2023,120.4,,ESPO
"Commercial, Corporate & landlord Services",Asset Management,Resources,MCC Markets,Premises,Energy Costs,Electricity.,,01/11/2023,30/11/2023,2127.1,,EDF Energy
Schools Total,School Group 2 � Pupil Capacity 144-314,MCC Schools,Raglan CiW Primary School (VC),Supplies & Services,"Equipment, Furniture and Materials",Materials & Consumables.,,13/09/2023,09/11/2023,40,,The Royal School of Church Music
Schools Total,SCHGRP3 � School Group 3 � Pupil Capacity 315-500,MCC Schools,The Dell Primary School,Supplies & Services,"Equipment, Furniture and Materials",Materials & Consumables.,,03/10/2023,09/11/2023,48,,ESPO
Schools Total,SCHGRP3 � School Group 3 � Pupil Capacity 315-500,MCC Schools,The Dell Primary School,Supplies & Services,"Equipment, Furniture and Materials",Materials & Consumables.,,13/10/2023,09/11/2023,13.28,,Amazon Payments UK Limited
Schools Total,SCHGRP3 � School Group 3 � Pupil Capacity 315-500,MCC Schools,The Dell Primary School,Supplies & Services,"Equipment, Furniture and Materials",Materials & Consumables.,,28/10/2023,09/11/2023,15.33,,Amazon Payments UK Limited
Schools Total,School Group 2 � Pupil Capacity 144-314,MCC Schools,Trellech Primary School,Supplies & Services,"Equipment, Furniture and Materials",Materials & Consumables.,,17/11/2023,24/11/2023,27.35,,ESPO
Schools Total,School Group 2 � Pupil Capacity 144-314,MCC Schools,St Mary�s RC Primary School (VA),Supplies & Services,"Equipment, Furniture and Materials",Materials & Consumables.,,23/11/2023,01/12/2023,4.99,,Amazon Payments UK Limited
Schools Total,School Group 2 � Pupil Capacity 144-314,MCC Schools,St Mary�s RC Primary School (VA),Supplies & Services,"Equipment, Furniture and Materials",Materials & Consumables.,,23/11/2023,01/12/2023,26.9,,Amazon Payments UK Limited
Schools Total,School Group 2 � Pupil Capacity 144-314,MCC Schools,St Mary�s RC Primary School (VA),Supplies & Services,"Equipment, Furniture and Materials",Materials & Consumables.,,23/11/2023,01/12/2023,6.49,,Amazon Payments UK Limited
Schools Total,School Group 2 � Pupil Capacity 144-314,MCC Schools,St Mary�s RC Primary School (VA),Supplies & Services,"Equipment, Furniture and Materials",Materials & Consumables.,,23/11/2023,01/12/2023,5.82,,Amazon Payments UK Limited
Schools Total,School Group 2 � Pupil Capacity 144-314,MCC Schools,St Mary�s RC Primary School (VA),Supplies & Services,"Equipment, Furniture and Materials",Materials & Consumables.,,23/11/2023,01/12/2023,5.41,,Amazon Payments UK Limited
Schools Total,SCHGRP3 � School Group 3 � Pupil Capacity 315-500,MCC Schools,The Dell Primary School,Supplies & Services,"Equipment, Furniture and Materials",Materials & Consumables.,,26/10/2023,09/11/2023,15.83,,Amazon Payments UK Limited
Schools Total,SCHGRP3 � School Group 3 � Pupil Capacity 315-500,MCC Schools,The Dell Primary School,Supplies & Services,"Equipment, Furniture and Materials",Materials & Consumables.,,25/10/2023,09/11/2023,10.37,,Amazon Payments UK Limited
Schools Total,School Group 2 � Pupil Capacity 144-314,MCC Schools,Raglan CiW Primary School (VC),Supplies & Services,"Equipment, Furniture and Materials",Materials & Consumables.,,25/10/2023,09/11/2023,6.9,,ESPO
Schools Total,School Group 2 � Pupil Capacity 144-314,MCC Schools,Raglan CiW Primary School (VC),Supplies & Services,"Equipment, Furniture and Materials",Materials & Consumables.,,25/10/2023,09/11/2023,6.9,,ESPO
Schools Total,School Group 2 � Pupil Capacity 144-314,MCC Schools,Raglan CiW Primary School (VC),Supplies & Services,"Equipment, Furniture and Materials",Materials & Consumables.,,25/10/2023,09/11/2023,3.9,,ESPO
Schools Total,School Group 2 � Pupil Capacity 144-314,MCC Schools,Raglan CiW Primary School (VC),Supplies & Services,"Equipment, Furniture and Materials",Materials & Consumables.,,30/10/2023,09/11/2023,2660,,Oxford University Press
Schools Total,School Group 2 � Pupil Capacity 144-314,MCC Schools,Raglan CiW Primary School (VC),Supplies & Services,"Equipment, Furniture and Materials",Materials & Consumables.,,30/10/2023,09/11/2023,5.5,,Oxford University Press
Adult Services,Direct Care Residential,Social Care and Health,Mardy Park,Premises,Energy Costs,Gas.,,13/11/2023,30/11/2023,3411.84,,TOTAL GAS & POWER LIMITED
Schools Total,School Group 2 � Pupil Capacity 144-314,MCC Schools,Archbishop Rowan Williams CiW Primary School (VA),Premises,Energy Costs,Gas.,,13/11/2023,30/11/2023,1216.66,,TOTAL GAS & POWER LIMITED
Adult Services,Day Centres,Social Care and Health,My Day,Premises,Energy Costs,Electricity.,,31/10/2023,30/11/2023,4.21,,EDF Energy
Adult Services,Day Centres,Social Care and Health,My Day,Premises,Energy Costs,Electricity.,,31/10/2023,30/11/2023,179.3,,EDF Energy
Schools Total,School Group 2 � Pupil Capacity 144-314,MCC Schools,Durand Primary School,Premises,Energy Costs,Gas.,,13/11/2023,30/11/2023,886.33,,TOTAL GAS & POWER LIMITED
"Commercial, Corporate & landlord Services",Property Services & Facilities Management,Resources,Central Accommodation,Premises,Energy Costs,Gas.,,13/11/2023,30/11/2023,161.17,,TOTAL GAS & POWER LIMITED
"Commercial, Corporate & landlord Services",Property Services & Facilities Management,Resources,Central Accommodation,Premises,Energy Costs,Gas.,,13/11/2023,30/11/2023,320.04,,TOTAL GAS & POWER LIMITED
Children Services,Children Services Other,Social Care and Health,Ser Bach / Herbert Road,Premises,Energy Costs,Gas.,,13/11/2023,30/11/2023,211.45,,TOTAL GAS & POWER LIMITED
Schools Total,School Group 2 � Pupil Capacity 144-314,MCC Schools,Gilwern Primary School,Premises,Energy Costs,Gas.,,13/11/2023,30/11/2023,266.07,,TOTAL GAS & POWER LIMITED
Schools Total,School Group 2 � Pupil Capacity 144-314,MCC Schools,St Mary�s RC Primary School (VA),Premises,Energy Costs,Gas.,,13/11/2023,30/11/2023,655.81,,TOTAL GAS & POWER LIMITED
Schools Total,School Group 1 � Pupil Capacity 1-143,MCC Schools,Ysgol Gymraeg Y Ffin,Premises,Energy Costs,Gas.,,13/11/2023,30/11/2023,216.49,,TOTAL GAS & POWER LIMITED
Schools Total,School Group 2 � Pupil Capacity 144-314,MCC Schools,Usk CiW Primary School (VC),Premises,Energy Costs,Gas.,,13/11/2023,30/11/2023,809.05,,TOTAL GAS & POWER LIMITED
Schools Total,School Group 2 � Pupil Capacity 144-314,MCC Schools,Osbaston CiW Primary School (VC),Premises,Energy Costs,Gas.,,13/11/2023,30/11/2023,339.52,,TOTAL GAS & POWER LIMITED
Schools Total,School Group 2 � Pupil Capacity 144-314,MCC Schools,Osbaston CiW Primary School (VC),Premises,Energy Costs,Gas.,,13/11/2023,30/11/2023,766.11,,TOTAL GAS & POWER LIMITED
Schools Total,School Group 7 � Pupil Capacity 501-1800,MCC Schools,Monmouth Comprehensive,Premises,Energy Costs,Gas.,,13/11/2023,30/11/2023,652.4,,TOTAL GAS & POWER LIMITED
"Commercial, Corporate & landlord Services",Property Services & Facilities Management,Resources,Central Accommodation,Premises,Energy Costs,Gas.,,13/11/2023,30/11/2023,1744.46,,TOTAL GAS & POWER LIMITED
Schools Total,SCHGRP3 � School Group 3 � Pupil Capacity 315-500,MCC Schools,Overmonnow Primary School,Supplies & Services,"Equipment, Furniture and Materials",Materials & Consumables.,,16/11/2023,22/11/2023,167.97,,Hope Education Ltd
Schools Total,School Group 2 � Pupil Capacity 144-314,MCC Schools,Llanfoist Fawr Primary School,Premises,Fixtures and Fittings,Alarm Systems,,31/10/2023,30/11/2023,38,,G4S Secure Solutions (UK) Ltd
Schools Total,SCHGRP3 � School Group 3 � Pupil Capacity 315-500,MCC Schools,The Dell Primary School,Supplies & Services,"Equipment, Furniture and Materials",Materials & Consumables.,,06/11/2023,30/11/2023,60.9,,Out Of The Ark Music
Schools Total,SCHGRP3 � School Group 3 � Pupil Capacity 315-500,MCC Schools,The Dell Primary School,Supplies & Services,"Equipment, Furniture and Materials",Materials & Consumables.,,13/10/2023,09/11/2023,6.01,,Amazon Payments UK Limited
Schools Total,School Group 2 � Pupil Capacity 144-314,MCC Schools,Rogiet Primary School,Supplies & Services,"Equipment, Furniture and Materials",Materials & Consumables.,,15/09/2023,09/11/2023,69.95,,Inkjets and Toners
Schools Total,School Group 2 � Pupil Capacity 144-314,MCC Schools,Rogiet Primary School,Supplies & Services,"Equipment, Furniture and Materials",Materials & Consumables.,,15/09/2023,09/11/2023,69.95,,Inkjets and Toners
Schools Total,School Group 2 � Pupil Capacity 144-314,MCC Schools,Rogiet Primary School,Supplies & Services,"Equipment, Furniture and Materials",Materials & Consumables.,,15/09/2023,09/11/2023,69.95,,Inkjets and Toners
Schools Total,School Group 2 � Pupil Capacity 144-314,MCC Schools,Rogiet Primary School,Supplies & Services,"Equipment, Furniture and Materials",Materials & Consumables.,,15/09/2023,09/11/2023,69.95,,Inkjets and Toners
"Leisure, Youth & Outdoor Adventure",Leisure Services,MonLife Directorate,Caldicot Leisure Centre,Premises,Energy Costs,Gas.,,13/11/2023,30/11/2023,14140.1,,TOTAL GAS & POWER LIMITED
"Leisure, Youth & Outdoor Adventure",Leisure Services,MonLife Directorate,Monmouth Leisure Centre,Premises,Energy Costs,Gas.,,13/11/2023,30/11/2023,7682.91,,TOTAL GAS & POWER LIMITED
Finance & Business Devlopment,Attractions,MonLife Directorate,Tourist Information Centres,Premises,Energy Costs,Gas.,,13/11/2023,30/11/2023,129.64,,TOTAL GAS & POWER LIMITED
Schools Total,School Group 2 � Pupil Capacity 144-314,MCC Schools,Pembroke Primary School,Premises,Energy Costs,Gas.,,13/11/2023,30/11/2023,741.99,,TOTAL GAS & POWER LIMITED
Schools Total,School Group 2 � Pupil Capacity 144-314,MCC Schools,Castle Park Primary School,Premises,Energy Costs,Gas.,,13/11/2023,30/11/2023,536.9,,TOTAL GAS & POWER LIMITED
"Commercial, Corporate & landlord Services",Asset Management,Resources,Strategic Property Management,Premises,Energy Costs,Gas.,,13/11/2023,30/11/2023,10.85,,TOTAL GAS & POWER LIMITED
Schools Total,School Group 2 � Pupil Capacity 144-314,MCC Schools,Thornwell Primary School,Supplies & Services,"Equipment, Furniture and Materials",Materials & Consumables.,,10/11/2023,30/11/2023,4.99,,Amazon Payments UK Limited
Schools Total,School Group 2 � Pupil Capacity 144-314,MCC Schools,Thornwell Primary School,Supplies & Services,"Equipment, Furniture and Materials",Materials & Consumables.,,10/11/2023,30/11/2023,4.98,,Amazon Payments UK Limited
Schools Total,School Group 2 � Pupil Capacity 144-314,MCC Schools,Thornwell Primary School,Supplies & Services,"Equipment, Furniture and Materials",Materials & Consumables.,,10/11/2023,30/11/2023,3.99,,Amazon Payments UK Limited
Schools Total,School Group 2 � Pupil Capacity 144-314,MCC Schools,Thornwell Primary School,Supplies & Services,"Equipment, Furniture and Materials",Materials & Consumables.,,16/11/2023,30/11/2023,7.49,,Amazon Payments UK Limited
Finance & Business Devlopment,Museums,MonLife Directorate,Museums Monmouth,Premises,Energy Costs,Gas.,,13/11/2023,30/11/2023,1415.41,,TOTAL GAS & POWER LIMITED
Schools Total,School Group 7 � Pupil Capacity 501-1800,MCC Schools,King Henry VIII Comprehensive,Premises,Energy Costs,Gas.,,13/11/2023,30/11/2023,9460.75,,TOTAL GAS & POWER LIMITED
"Leisure, Youth & Outdoor Adventure",Leisure Services,MonLife Directorate,Abergavenny Leisure Centre,Premises,Energy Costs,Gas.,,13/11/2023,30/11/2023,9140.81,,TOTAL GAS & POWER LIMITED
"Commercial, Corporate & landlord Services",Property Services & Facilities Management,Resources,External Clients,Premises,Energy Costs,Liquid Gas.,,29/09/2023,30/11/2023,34.25,,Calor Gas Ltd
"Commercial, Corporate & landlord Services",Property Services & Facilities Management,Resources,External Clients,Premises,Energy Costs,Liquid Gas.,,29/09/2023,30/11/2023,34.25,,Calor Gas Ltd
Children Services,Children Services Other,Social Care and Health,Counsel Costs,Supplies & Services,Services,Legal Costs,,28/11/2023,01/12/2023,563.5,,REDACTED PERSONAL DATA
Children Services,Children Services Other,Social Care and Health,Counsel Costs,Supplies & Services,Services,Legal Costs,,13/11/2023,22/11/2023,1625,,REDACTED PERSONAL DATA
Schools Total,School Group 2 � Pupil Capacity 144-314,MCC Schools,Dewstow Primary School,Supplies & Services,"Equipment, Furniture and Materials",Materials & Consumables.,,31/10/2023,22/11/2023,38.25,,TTS Group Ltd
Schools Total,School Group 2 � Pupil Capacity 144-314,MCC Schools,Dewstow Primary School,Supplies & Services,"Equipment, Furniture and Materials",Materials & Consumables.,,03/11/2023,22/11/2023,154.99,,TTS Group Ltd
Schools Total,School Group 2 � Pupil Capacity 144-314,MCC Schools,Dewstow Primary School,Supplies & Services,"Equipment, Furniture and Materials",Materials & Consumables.,,30/10/2023,22/11/2023,149.99,,TTS Group Ltd
Finance,Revenues Department,Resources,Council Tax & NNDR Administration,Supplies & Services,Services,Financial products and services general fees and charges,,11/10/2023,16/11/2023,3.14,,B & S Bailiff Services
Schools Total,School Group 2 � Pupil Capacity 144-314,MCC Schools,Archbishop Rowan Williams CiW Primary School (VA),Supplies & Services,"Equipment, Furniture and Materials",Materials & Consumables.,,30/10/2023,30/11/2023,28,,ESPO
Schools Total,School Group 2 � Pupil Capacity 144-314,MCC Schools,Archbishop Rowan Williams CiW Primary School (VA),Supplies & Services,"Equipment, Furniture and Materials",Materials & Consumables.,,30/10/2023,30/11/2023,20.6,,ESPO
Schools Total,School Group 2 � Pupil Capacity 144-314,MCC Schools,Archbishop Rowan Williams CiW Primary School (VA),Supplies & Services,"Equipment, Furniture and Materials",Materials & Consumables.,,30/10/2023,30/11/2023,22.5,,ESPO
Schools Total,School Group 2 � Pupil Capacity 144-314,MCC Schools,Archbishop Rowan Williams CiW Primary School (VA),Supplies & Services,"Equipment, Furniture and Materials",Materials & Consumables.,,30/10/2023,30/11/2023,28.2,,ESPO
Schools Total,School Group 2 � Pupil Capacity 144-314,MCC Schools,Archbishop Rowan Williams CiW Primary School (VA),Supplies & Services,"Equipment, Furniture and Materials",Materials & Consumables.,,30/10/2023,30/11/2023,14.1,,ESPO
"Enterprise, Housing & Community Animation",General Fund Housing,Communities & Place,Homelessness,Supplies & Services,Services,Homelessness Bed & Breakfast Accomodation,,09/10/2023,03/11/2023,224,,The Mayhill Hotel
"Enterprise, Housing & Community Animation",General Fund Housing,Communities & Place,Homelessness,Supplies & Services,Services,Homelessness Bed & Breakfast Accomodation,,24/10/2023,03/11/2023,291.69,,Raglan Lodge
"Enterprise, Housing & Community Animation",General Fund Housing,Communities & Place,Homelessness,Supplies & Services,Services,Homelessness Bed & Breakfast Accomodation,,09/10/2023,03/11/2023,800,,The Mayhill Hotel
"Enterprise, Housing & Community Animation",General Fund Housing,Communities & Place,Homelessness,Supplies & Services,Services,Homelessness Bed & Breakfast Accomodation,,09/10/2023,03/11/2023,-160,,The Mayhill Hotel
"Enterprise, Housing & Community Animation",General Fund Housing,Communities & Place,Homelessness,Supplies & Services,Services,Homelessness Bed & Breakfast Accomodation,,09/10/2023,03/11/2023,160,,The Mayhill Hotel
"Enterprise, Housing & Community Animation",General Fund Housing,Communities & Place,Homelessness,Supplies & Services,Services,Homelessness Bed & Breakfast Accomodation,,20/11/2023,24/11/2023,291.69,,Raglan Lodge
Schools Total,School Group 7 � Pupil Capacity 501-1800,MCC Schools,Chepstow School,Supplies & Services,Expenses,Exam Fees (Schools),,13/10/2023,23/11/2023,4583.3,,Pearson Education LTD
Schools Total,School Group 7 � Pupil Capacity 501-1800,MCC Schools,Chepstow School,Supplies & Services,Expenses,Exam Fees (Schools),,19/10/2023,23/11/2023,2706.3,,Pearson Education LTD
Schools Total,School Group 7 � Pupil Capacity 501-1800,MCC Schools,Chepstow School,Supplies & Services,Expenses,Exam Fees (Schools),,26/10/2023,23/11/2023,169.45,,Pearson Education LTD
"Enterprise, Housing & Community Animation",General Fund Housing,Communities & Place,Homelessness,Supplies & Services,Services,Homelessness Bed & Breakfast Accomodation,,20/11/2023,24/11/2023,291.69,,Raglan Lodge
"Enterprise, Housing & Community Animation",General Fund Housing,Communities & Place,Homelessness,Supplies & Services,Services,Homelessness Bed & Breakfast Accomodation,,20/11/2023,24/11/2023,291.69,,Raglan Lodge
"Enterprise, Housing & Community Animation",General Fund Housing,Communities & Place,Homelessness,Supplies & Services,Services,Homelessness Bed & Breakfast Accomodation,,20/11/2023,24/11/2023,291.69,,Raglan Lodge
"Enterprise, Housing & Community Animation",General Fund Housing,Communities & Place,Homelessness,Supplies & Services,Services,Homelessness Bed & Breakfast Accomodation,,20/11/2023,24/11/2023,291.69,,Raglan Lodge
"Enterprise, Housing & Community Animation",General Fund Housing,Communities & Place,Homelessness,Supplies & Services,Services,Homelessness Bed & Breakfast Accomodation,,20/11/2023,24/11/2023,291.69,,Raglan Lodge
"Enterprise, Housing & Community Animation",General Fund Housing,Communities & Place,Homelessness,Supplies & Services,Services,Homelessness Bed & Breakfast Accomodation,,20/11/2023,24/11/2023,291.69,,Raglan Lodge
"Enterprise, Housing & Community Animation",General Fund Housing,Communities & Place,Homelessness,Supplies & Services,Services,Homelessness Bed & Breakfast Accomodation,,20/11/2023,24/11/2023,291.69,,Raglan Lodge
Finance & Business Devlopment,Attractions,MonLife Directorate,Tourist Information Centres,Supplies & Services,"Equipment, Furniture and Materials",General Goods For Resale.,,31/10/2023,09/11/2023,383.25,,National Express Limited
"Enterprise, Housing & Community Animation",General Fund Housing,Communities & Place,Homelessness,Supplies & Services,Services,Homelessness Bed & Breakfast Accomodation,,20/11/2023,24/11/2023,291.69,,Raglan Lodge
"Enterprise, Housing & Community Animation",General Fund Housing,Communities & Place,Homelessness,Supplies & Services,Services,Homelessness Bed & Breakfast Accomodation,,20/11/2023,24/11/2023,291.69,,Raglan Lodge
"Placemaking, Highways & Flooding",Highways Dev & Car Parks,Communities & Place,Traffic & Road Safety,Supplies & Services,"Equipment, Furniture and Materials",Advertising,,10/11/2023,14/11/2023,420,,Tindle Newspapers Wales & The Borders Ltd
"Placemaking, Highways & Flooding",Highways Dev & Car Parks,Communities & Place,Traffic & Road Safety,Supplies & Services,"Equipment, Furniture and Materials",Advertising,,10/11/2023,14/11/2023,420,,Tindle Newspapers Wales & The Borders Ltd
"Enterprise, Housing & Community Animation",General Fund Housing,Communities & Place,Monmouthshire Letting Service,Supplies & Services,"Equipment, Furniture and Materials",Advertising,,06/11/2023,14/11/2023,125,,The Property Drop
Schools Total,School Group 2 � Pupil Capacity 144-314,MCC Schools,Shirenewton Primary School,Supplies & Services,Grants and Subscriptions,Subscriptions,,30/10/2023,14/11/2023,140,,White Rose Maths
Schools Total,School Group 7 � Pupil Capacity 501-1800,MCC Schools,King Henry 3-19 School,Supplies & Services,Expenses,Exam Fees (Schools),,04/10/2023,14/11/2023,7930.26,,Pearson Education LTD
Children Services,Children Services Other,Social Care and Health,External Placements - CLA,Third Party Payments,Third Party,Fostering/Adoption Allowances,,13/11/2023,01/12/2023,3693.3,,Action For Children
Children Services,Children Services Other,Social Care and Health,External Placements - CLA,Third Party Payments,Third Party,Fostering/Adoption Allowances,,30/09/2023,01/12/2023,3805.8,,The Adolescent & Childrens Trust
"Enterprise, Housing & Community Animation",Business Growth & Enterprise,Communities & Place,Communities for Work Plus,Supplies & Services,Expenses,Non Employee Training Courses,,09/11/2023,20/11/2023,200,,ARC Plant & Civils Ltd
"Enterprise, Housing & Community Animation",Business Growth & Enterprise,Communities & Place,CELT Shared Prosperity Fund - Adult,Supplies & Services,Expenses,Non Employee Training Courses,,14/11/2023,20/11/2023,20,,Mental Health First Aid Wales Ltd
Schools Total,School Group 7 � Pupil Capacity 501-1800,MCC Schools,King Henry 3-19 School,Supplies & Services,Expenses,Exam Fees (Schools),,01/11/2023,20/11/2023,495,,SWEET EDUCATION
"Placemaking, Highways & Flooding",Highways Dev & Car Parks,Communities & Place,Traffic & Road Safety,Supplies & Services,"Equipment, Furniture and Materials",Advertising,,10/11/2023,14/11/2023,420,,Tindle Newspapers Wales & The Borders Ltd
"Placemaking, Highways & Flooding",Highways Dev & Car Parks,Communities & Place,Traffic & Road Safety,Supplies & Services,"Equipment, Furniture and Materials",Advertising,,10/11/2023,14/11/2023,420,,Tindle Newspapers Wales & The Borders Ltd
Schools Total,School Group 2 � Pupil Capacity 144-314,MCC Schools,Shirenewton Primary School,Supplies & Services,Services,Bank Charges,,18/09/2023,14/11/2023,1330.29,,F R Ball Insurance Ltd
Neighbourhood Services,Highways,Communities & Place,Emergency road clearance,Supplies & Services,"Equipment, Furniture and Materials",Small Plant & Tools.,,29/09/2023,22/11/2023,395,,Industrial Rugbi Supplies
Schools Total,School Group 7 � Pupil Capacity 501-1800,MCC Schools,King Henry 3-19 School,Supplies & Services,Expenses,Exam Fees (Schools),,26/10/2023,22/11/2023,-174.8,,Pearson Education LTD
Schools Total,School Group 2 � Pupil Capacity 144-314,MCC Schools,Archbishop Rowan Williams CiW Primary School (VA),Supplies & Services,"Equipment, Furniture and Materials",Materials & Consumables.,,30/10/2023,30/11/2023,25.8,,ESPO
Schools Total,School Group 2 � Pupil Capacity 144-314,MCC Schools,Archbishop Rowan Williams CiW Primary School (VA),Supplies & Services,"Equipment, Furniture and Materials",Materials & Consumables.,,30/10/2023,30/11/2023,25.8,,ESPO
Schools Total,School Group 2 � Pupil Capacity 144-314,MCC Schools,Archbishop Rowan Williams CiW Primary School (VA),Supplies & Services,"Equipment, Furniture and Materials",Materials & Consumables.,,30/10/2023,30/11/2023,18.8,,ESPO
Schools Total,School Group 2 � Pupil Capacity 144-314,MCC Schools,Archbishop Rowan Williams CiW Primary School (VA),Supplies & Services,"Equipment, Furniture and Materials",Materials & Consumables.,,30/10/2023,30/11/2023,25.8,,ESPO
Finance,Revenues Department,Resources,Council Tax & NNDR Administration,Supplies & Services,Services,Financial products and services general fees and charges,,27/09/2023,20/11/2023,-969.61,,B & S Bailiff Services
Finance,Revenues Department,Resources,Council Tax & NNDR Administration,Supplies & Services,Services,Financial products and services general fees and charges,,27/09/2023,20/11/2023,52.48,,B & S Bailiff Services
Finance,Revenues Department,Resources,Council Tax & NNDR Administration,Supplies & Services,Services,Financial products and services general fees and charges,,13/09/2023,20/11/2023,1701.19,,B & S Bailiff Services
Finance,Revenues Department,Resources,Council Tax & NNDR Administration,Supplies & Services,Services,Financial products and services general fees and charges,,13/09/2023,20/11/2023,-1701.19,,B & S Bailiff Services
Finance,Revenues Department,Resources,Council Tax & NNDR Administration,Supplies & Services,Services,Financial products and services general fees and charges,,13/09/2023,20/11/2023,141.31,,B & S Bailiff Services
Finance,Revenues Department,Resources,Council Tax & NNDR Administration,Supplies & Services,Services,Financial products and services general fees and charges,,14/09/2023,20/11/2023,310,,B & S Bailiff Services
Finance,Revenues Department,Resources,Council Tax & NNDR Administration,Supplies & Services,Services,Financial products and services general fees and charges,,27/09/2023,20/11/2023,969.61,,B & S Bailiff Services
Schools Total,School Group 2 � Pupil Capacity 144-314,MCC Schools,Dewstow Primary School,Supplies & Services,"Equipment, Furniture and Materials",Materials & Consumables.,,31/10/2023,22/11/2023,243.92,,TTS Group Ltd
Schools Total,School Group 2 � Pupil Capacity 144-314,MCC Schools,Dewstow Primary School,Supplies & Services,"Equipment, Furniture and Materials",Materials & Consumables.,,31/10/2023,22/11/2023,-127.99,,TTS Group Ltd
Schools Total,School Group 2 � Pupil Capacity 144-314,MCC Schools,Dewstow Primary School,Supplies & Services,"Equipment, Furniture and Materials",Materials & Consumables.,,31/10/2023,22/11/2023,127.99,,TTS Group Ltd
Schools Total,School Group 2 � Pupil Capacity 144-314,MCC Schools,Dewstow Primary School,Supplies & Services,"Equipment, Furniture and Materials",Materials & Consumables.,,10/11/2023,22/11/2023,139.01,,Out Of The Ark Music
Finance & Business Devlopment,Museums,MonLife Directorate,Museums Chepstow,Premises,Energy Costs,Gas.,,13/11/2023,30/11/2023,585.62,,TOTAL GAS & POWER LIMITED
"Enterprise, Housing & Community Animation",General Fund Housing,Communities & Place,Lodgings Scheme,Premises,Energy Costs,Gas.,,13/11/2023,30/11/2023,14.57,,TOTAL GAS & POWER LIMITED
"Commercial, Corporate & landlord Services",Asset Management,Resources,Strategic Property Management,Premises,Energy Costs,Gas.,,13/11/2023,30/11/2023,19.84,,TOTAL GAS & POWER LIMITED
Children Services,Children Services Other,Social Care and Health,Counsel Costs,Supplies & Services,Services,Legal Costs,,07/11/2023,09/11/2023,970,,REDACTED PERSONAL DATA
Schools Total,School Group 1 � Pupil Capacity 1-143,MCC Schools,Ysgol Gymraeg Y Ffin,Supplies & Services,"Equipment, Furniture and Materials",Materials & Consumables.,,24/08/2023,24/11/2023,1945,,Comcen Computer Supplies Ltd
Schools Total,School Group 1 � Pupil Capacity 1-143,MCC Schools,Ysgol Gymraeg Y Ffin,Supplies & Services,"Equipment, Furniture and Materials",Materials & Consumables.,,24/08/2023,24/11/2023,25,,Comcen Computer Supplies Ltd
Schools Total,School Group 1 � Pupil Capacity 1-143,MCC Schools,Ysgol Gymraeg Y Ffin,Supplies & Services,"Equipment, Furniture and Materials",Materials & Consumables.,,24/08/2023,24/11/2023,250,,Comcen Computer Supplies Ltd
"Commercial, Corporate & landlord Services",Property Services & Facilities Management,Resources,External Clients,Premises,Energy Costs,Liquid Gas.,,20/10/2023,30/11/2023,229.57,,Calor Gas Ltd
Schools Total,School Group 2 � Pupil Capacity 144-314,MCC Schools,Trellech Primary School,Supplies & Services,"Equipment, Furniture and Materials",Materials & Consumables.,,23/11/2023,01/12/2023,322.65,,ESPO
Schools Total,SCHGRP3 � School Group 3 � Pupil Capacity 315-500,MCC Schools,Overmonnow Primary School,Supplies & Services,"Equipment, Furniture and Materials",Materials & Consumables.,,26/10/2023,06/11/2023,193.28,,Westfield4Schools
Schools Total,School Group 2 � Pupil Capacity 144-314,MCC Schools,Our Lady & St Michael's (OLSM) RC Primary School (VA),Supplies & Services,"Equipment, Furniture and Materials",Materials & Consumables.,,09/10/2023,06/11/2023,51.16,,RM Educational Resources Ltd
Schools Total,School Group 2 � Pupil Capacity 144-314,MCC Schools,Raglan CiW Primary School (VC),Supplies & Services,"Equipment, Furniture and Materials",Materials & Consumables.,,30/10/2023,10/11/2023,74.55,,ESPO
Schools Total,SCHGRP3 � School Group 3 � Pupil Capacity 315-500,MCC Schools,The Dell Primary School,Supplies & Services,"Equipment, Furniture and Materials",Materials & Consumables.,,21/06/2023,10/11/2023,11.52,,RM Educational Resources Ltd
Schools Total,SCHGRP3 � School Group 3 � Pupil Capacity 315-500,MCC Schools,The Dell Primary School,Premises,Energy Costs,Gas.,,13/11/2023,30/11/2023,857.95,,TOTAL GAS & POWER LIMITED
"Commercial, Corporate & landlord Services",Property Services & Facilities Management,Resources,Central Accommodation,Premises,Energy Costs,Gas.,,13/11/2023,30/11/2023,12.4,,TOTAL GAS & POWER LIMITED
Schools Total,School Group 2 � Pupil Capacity 144-314,MCC Schools,Cantref Primary School,Supplies & Services,"Equipment, Furniture and Materials",Materials & Consumables.,,09/11/2023,23/11/2023,48.21,,Out Of The Ark Music
Schools Total,School Group 2 � Pupil Capacity 144-314,MCC Schools,Archbishop Rowan Williams CiW Primary School (VA),Supplies & Services,"Equipment, Furniture and Materials",Materials & Consumables.,,21/11/2023,23/11/2023,14.58,,Amazon Payments UK Limited
"Commercial, Corporate & landlord Services",Asset Management,Resources,MCC Markets,Premises,Energy Costs,Electricity.,,08/11/2023,30/11/2023,47.35,,EDF Energy
Children Services,Supporting Children & Young People Service,Social Care and Health,Family Time Service,Premises,Energy Costs,Gas.,,13/11/2023,30/11/2023,89.03,,TOTAL GAS & POWER LIMITED
Schools Total,School Group 2 � Pupil Capacity 144-314,MCC Schools,Shirenewton Primary School,Supplies & Services,"Equipment, Furniture and Materials",Materials & Consumables.,,06/11/2023,10/11/2023,276,,Scholastic Ltd
Schools Total,School Group 2 � Pupil Capacity 144-314,MCC Schools,Raglan CiW Primary School (VC),Supplies & Services,"Equipment, Furniture and Materials",Materials & Consumables.,,30/10/2023,10/11/2023,19.1,,ESPO
Schools Total,School Group 2 � Pupil Capacity 144-314,MCC Schools,Our Lady & St Michael's (OLSM) RC Primary School (VA),Supplies & Services,"Equipment, Furniture and Materials",Materials & Consumables.,,06/11/2023,30/11/2023,99.87,,Amazon Payments UK Limited
Schools Total,School Group 2 � Pupil Capacity 144-314,MCC Schools,Our Lady & St Michael's (OLSM) RC Primary School (VA),Supplies & Services,"Equipment, Furniture and Materials",Materials & Consumables.,,07/11/2023,30/11/2023,77.46,,Amazon Payments UK Limited
Schools Total,School Group 2 � Pupil Capacity 144-314,MCC Schools,Our Lady & St Michael's (OLSM) RC Primary School (VA),Supplies & Services,"Equipment, Furniture and Materials",Materials & Consumables.,,07/11/2023,30/11/2023,10.41,,Amazon Payments UK Limited
Schools Total,School Group 2 � Pupil Capacity 144-314,MCC Schools,Our Lady & St Michael's (OLSM) RC Primary School (VA),Supplies & Services,"Equipment, Furniture and Materials",Materials & Consumables.,,07/11/2023,30/11/2023,62.46,,Amazon Payments UK Limited
Schools Total,School Group 2 � Pupil Capacity 144-314,MCC Schools,Our Lady & St Michael's (OLSM) RC Primary School (VA),Supplies & Services,"Equipment, Furniture and Materials",Materials & Consumables.,,07/11/2023,30/11/2023,62.46,,Amazon Payments UK Limited
Schools Total,School Group 2 � Pupil Capacity 144-314,MCC Schools,Our Lady & St Michael's (OLSM) RC Primary School (VA),Supplies & Services,"Equipment, Furniture and Materials",Materials & Consumables.,,07/11/2023,30/11/2023,79.96,,Amazon Payments UK Limited
Schools Total,School Group 2 � Pupil Capacity 144-314,MCC Schools,Archbishop Rowan Williams CiW Primary School (VA),Supplies & Services,"Equipment, Furniture and Materials",Materials & Consumables.,,10/10/2023,14/11/2023,15.81,,Amazon Payments UK Limited
Schools Total,School Group 7 � Pupil Capacity 501-1800,MCC Schools,King Henry VIII Comprehensive,Premises,Water Services,Water Services-Metered.,,05/10/2023,30/11/2023,2177.35,,Welsh Water
"Leisure, Youth & Outdoor Adventure",Youth & Education,MonLife Directorate,Gilwern,Premises,Energy Costs,Liquid Gas.,,09/10/2023,30/11/2023,227.01,,Calor Gas Ltd
"Leisure, Youth & Outdoor Adventure",Youth & Education,MonLife Directorate,Gilwern,Premises,Energy Costs,Liquid Gas.,,09/10/2023,30/11/2023,178.82,,Calor Gas Ltd
"Leisure, Youth & Outdoor Adventure",Leisure Services,MonLife Directorate,Caldicot Leisure Centre,Premises,Water Services,Water Services-Metered.,,07/10/2023,30/11/2023,2144.21,,Welsh Water
"Leisure, Youth & Outdoor Adventure",Leisure Services,MonLife Directorate,Chepstow Leisure Centre,Premises,Water Services,Water Services-Metered.,,07/10/2023,30/11/2023,3202.31,,Welsh Water
"Leisure, Youth & Outdoor Adventure",Leisure Services,MonLife Directorate,Abergavenny Leisure Centre,Premises,Water Services,Water Services-Metered.,,05/10/2023,30/11/2023,2195.72,,Welsh Water
Schools Total,School Group 2 � Pupil Capacity 144-314,MCC Schools,Cross Ash Primary School,Premises,Energy Costs,Liquid Gas.,,30/09/2023,30/11/2023,332.81,,Calor Gas Ltd
Schools Total,SCHGRP3 � School Group 3 � Pupil Capacity 315-500,MCC Schools,Magor CiW Primary School (VA),Premises,Energy Costs,Gas.,,13/11/2023,30/11/2023,1460.99,,TOTAL GAS & POWER LIMITED
Adult Services,Direct Care Residential,Social Care and Health,Mardy Park Resource Team,Premises,Energy Costs,Gas.,,27/10/2023,30/11/2023,21.8,,British Gas Trading Ltd
"Leisure, Youth & Outdoor Adventure",Youth & Education,MonLife Directorate,Gilwern,Premises,Energy Costs,Liquid Gas.,,11/10/2023,30/11/2023,271.72,,Calor Gas Ltd
"Facilities, Fleet & Decarbonisation",Property Services -  Cleaning,Communities & Place,Public Conveniences,Premises,Water Services,Water Services-Metered.,,08/11/2023,30/11/2023,68.23,,Welsh Water
Schools Total,School Group 2 � Pupil Capacity 144-314,MCC Schools,Trellech Primary School,Supplies & Services,"Equipment, Furniture and Materials",Materials & Consumables.,,02/11/2023,21/11/2023,31.2,,ESPO
Schools Total,School Group 2 � Pupil Capacity 144-314,MCC Schools,Trellech Primary School,Supplies & Services,"Equipment, Furniture and Materials",Materials & Consumables.,,02/11/2023,21/11/2023,31.2,,ESPO
Schools Total,School Group 2 � Pupil Capacity 144-314,MCC Schools,Trellech Primary School,Supplies & Services,"Equipment, Furniture and Materials",Materials & Consumables.,,04/11/2023,21/11/2023,49.1,,School Merit Stickers
Schools Total,School Group 2 � Pupil Capacity 144-314,MCC Schools,Cantref Primary School,Supplies & Services,"Equipment, Furniture and Materials",Materials & Consumables.,,24/10/2023,06/11/2023,51.67,,Hope Education Ltd
Schools Total,School Group 2 � Pupil Capacity 144-314,MCC Schools,Our Lady & St Michael's (OLSM) RC Primary School (VA),Supplies & Services,"Equipment, Furniture and Materials",Materials & Consumables.,,10/10/2023,06/11/2023,33.38,,RM Educational Resources Ltd
Schools Total,School Group 2 � Pupil Capacity 144-314,MCC Schools,Cantref Primary School,Supplies & Services,"Equipment, Furniture and Materials",Materials & Consumables.,,23/11/2023,01/12/2023,6.99,,RM Educational Resources Ltd
Schools Total,School Group 2 � Pupil Capacity 144-314,MCC Schools,Cross Ash Primary School,Premises,Fixtures and Fittings,Alarm Systems,,01/10/2023,02/11/2023,50.83,,Shield Security
"Policy, Scrutiny & Customer Service",Community Hubs,Chief Executive's Unit,Community Hub - Monmouth,Premises,Water Services,Water Services-Metered.,,20/06/2023,30/11/2023,-3894.6,,Welsh Water
"Facilities, Fleet & Decarbonisation",Regional Transport,Communities & Place,Ramp Up Scheme � BSSG,Supplies & Services,Grants and Subscriptions,Grants Payable,,16/11/2023,16/11/2023,97898.33,,Varteg Motors Ltd
"Commercial, Corporate & landlord Services",Property Services & Facilities Management,Resources,Central Accommodation,Premises,Energy Costs,Gas.,,13/11/2023,30/11/2023,1442.38,,TOTAL GAS & POWER LIMITED
"Leisure, Youth & Outdoor Adventure",Play,MonLife Directorate,Winter of Well Being Funding,Premises,"Repairs, Alterations & Maintenance of Buildings",Building Improvements / Maintenance,,07/11/2023,24/11/2023,260,,KRL Services
Schools Total,School Group 2 � Pupil Capacity 144-314,MCC Schools,Thornwell Primary School,Premises,"Repairs, Alterations & Maintenance of Buildings",Building Improvements / Maintenance,,23/11/2023,01/12/2023,63.44,,A.J Quinn Building Contractors Ltd
"Commercial, Corporate & landlord Services",Property Services & Facilities Management,Resources,Programmed Maintenance,Premises,"Repairs, Alterations & Maintenance of Buildings",Building Improvements / Maintenance,,09/11/2023,01/12/2023,46,,A.J Quinn Building Contractors Ltd
Schools Total,School Group 2 � Pupil Capacity 144-314,MCC Schools,Goytre Fawr Primary School,Premises,"Repairs, Alterations & Maintenance of Buildings",Building Improvements / Maintenance,,23/11/2023,01/12/2023,363,,A.J Quinn Building Contractors Ltd
Schools Total,School Group 2 � Pupil Capacity 144-314,MCC Schools,Usk CiW Primary School (VC),Premises,"Repairs, Alterations & Maintenance of Buildings",Building Improvements / Maintenance,,15/11/2023,01/12/2023,6489,,A.J Quinn Building Contractors Ltd
"Enterprise, Housing & Community Animation",General Fund Housing,Communities & Place,Emergency Accommodation Hostel,Premises,"Repairs, Alterations & Maintenance of Buildings",Building Improvements / Maintenance,,02/11/2023,01/12/2023,325,,Highmore Facilities Ltd
"Leisure, Youth & Outdoor Adventure",Play,MonLife Directorate,Winter of Well Being Funding,Premises,"Repairs, Alterations & Maintenance of Buildings",Building Improvements / Maintenance,,07/11/2023,24/11/2023,190,,KRL Services
Schools Total,School Group 2 � Pupil Capacity 144-314,MCC Schools,Thornwell Primary School,Premises,"Repairs, Alterations & Maintenance of Buildings",Building Improvements / Maintenance,,23/10/2023,24/11/2023,457.5,,A.J Quinn Building Contractors Ltd
Schools Total,School Group 2 � Pupil Capacity 144-314,MCC Schools,St Mary�s RC Primary School (VA),Premises,"Repairs, Alterations & Maintenance of Buildings",Building Improvements / Maintenance,,31/10/2023,08/11/2023,3.88,,Robert Price Ltd
Schools Total,School Group 2 � Pupil Capacity 144-314,MCC Schools,Llantilio Pertholey CiW Primary School (VC),Premises,"Repairs, Alterations & Maintenance of Buildings",Building Improvements / Maintenance,,31/10/2023,06/11/2023,165,,Industrial Door Services
Schools Total,School Group 2 � Pupil Capacity 144-314,MCC Schools,Trellech Primary School,Premises,"Repairs, Alterations & Maintenance of Buildings",Building Improvements / Maintenance,,31/10/2023,06/11/2023,145,,Industrial Door Services
"Enterprise, Housing & Community Animation",General Fund Housing,Communities & Place,Homelessness,Premises,"Repairs, Alterations & Maintenance of Buildings",Building Improvements / Maintenance,,02/11/2023,24/11/2023,750,,Highmore Facilities Ltd
Schools Total,School Group 2 � Pupil Capacity 144-314,MCC Schools,Osbaston CiW Primary School (VC),Premises,"Repairs, Alterations & Maintenance of Buildings",Building Improvements / Maintenance,,12/10/2023,09/11/2023,493.9,,A.J Quinn Building Contractors Ltd
Schools Total,School Group 2 � Pupil Capacity 144-314,MCC Schools,Trellech Primary School,Premises,"Repairs, Alterations & Maintenance of Buildings",Building Improvements / Maintenance,,12/10/2023,09/11/2023,393.97,,A.J Quinn Building Contractors Ltd
"Enterprise, Housing & Community Animation",General Fund Housing,Communities & Place,Homelessness,Premises,"Repairs, Alterations & Maintenance of Buildings",Building Improvements / Maintenance,,02/11/2023,24/11/2023,960,,Highmore Facilities Ltd
"Enterprise, Housing & Community Animation",General Fund Housing,Communities & Place,Homelessness,Premises,"Repairs, Alterations & Maintenance of Buildings",Building Improvements / Maintenance,,07/11/2023,24/11/2023,570,,Highmore Facilities Ltd
"Enterprise, Housing & Community Animation",General Fund Housing,Communities & Place,Homelessness,Premises,"Repairs, Alterations & Maintenance of Buildings",Building Improvements / Maintenance,,07/11/2023,24/11/2023,150,,Highmore Facilities Ltd
"Enterprise, Housing & Community Animation",General Fund Housing,Communities & Place,Melin PSL (Private Sector Leasing),Premises,"Repairs, Alterations & Maintenance of Buildings",Building Improvements / Maintenance,,02/11/2023,24/11/2023,266,,Highmore Facilities Ltd
"Enterprise, Housing & Community Animation",General Fund Housing,Communities & Place,Melin PSL (Private Sector Leasing),Premises,"Repairs, Alterations & Maintenance of Buildings",Building Improvements / Maintenance,,02/11/2023,24/11/2023,545,,Highmore Facilities Ltd
"Enterprise, Housing & Community Animation",General Fund Housing,Communities & Place,Melin PSL (Private Sector Leasing),Premises,"Repairs, Alterations & Maintenance of Buildings",Building Improvements / Maintenance,,07/11/2023,24/11/2023,645,,Highmore Facilities Ltd
"Enterprise, Housing & Community Animation",General Fund Housing,Communities & Place,Melin PSL (Private Sector Leasing),Premises,"Repairs, Alterations & Maintenance of Buildings",Building Improvements / Maintenance,,07/11/2023,24/11/2023,150,,Highmore Facilities Ltd
"Enterprise, Housing & Community Animation",General Fund Housing,Communities & Place,Melin PSL (Private Sector Leasing),Premises,"Repairs, Alterations & Maintenance of Buildings",Building Improvements / Maintenance,,14/11/2023,01/12/2023,30,,Monmouthshire Housing Association Ltd
"Enterprise, Housing & Community Animation",General Fund Housing,Communities & Place,Melin PSL (Private Sector Leasing),Premises,"Repairs, Alterations & Maintenance of Buildings",Building Improvements / Maintenance,,14/11/2023,01/12/2023,25,,Monmouthshire Housing Association Ltd
"Enterprise, Housing & Community Animation",General Fund Housing,Communities & Place,Melin PSL (Private Sector Leasing),Premises,"Repairs, Alterations & Maintenance of Buildings",Building Improvements / Maintenance,,14/11/2023,01/12/2023,25,,Monmouthshire Housing Association Ltd
"Enterprise, Housing & Community Animation",General Fund Housing,Communities & Place,Melin PSL (Private Sector Leasing),Premises,"Repairs, Alterations & Maintenance of Buildings",Building Improvements / Maintenance,,14/11/2023,01/12/2023,96.39,,Monmouthshire Housing Association Ltd
"Enterprise, Housing & Community Animation",General Fund Housing,Communities & Place,Melin PSL (Private Sector Leasing),Premises,"Repairs, Alterations & Maintenance of Buildings",Building Improvements / Maintenance,,13/09/2023,03/11/2023,13360,,Highmore Facilities Ltd
"Enterprise, Housing & Community Animation",General Fund Housing,Communities & Place,Melin PSL (Private Sector Leasing),Premises,"Repairs, Alterations & Maintenance of Buildings",Building Improvements / Maintenance,,13/09/2023,03/11/2023,1910,,Highmore Facilities Ltd
"Enterprise, Housing & Community Animation",General Fund Housing,Communities & Place,Melin PSL (Private Sector Leasing),Premises,"Repairs, Alterations & Maintenance of Buildings",Building Improvements / Maintenance,,13/09/2023,03/11/2023,-1910,,Highmore Facilities Ltd
"Enterprise, Housing & Community Animation",General Fund Housing,Communities & Place,Melin PSL (Private Sector Leasing),Premises,"Repairs, Alterations & Maintenance of Buildings",Building Improvements / Maintenance,,12/09/2023,03/11/2023,4340,,Highmore Facilities Ltd
"Enterprise, Housing & Community Animation",General Fund Housing,Communities & Place,Melin PSL (Private Sector Leasing),Premises,"Repairs, Alterations & Maintenance of Buildings",Building Improvements / Maintenance,,12/09/2023,03/11/2023,560,,Highmore Facilities Ltd
Schools Total,School Group 7 � Pupil Capacity 501-1800,MCC Schools,Caldicot School,Employees,Direct Employee Expenses,Agency Staff,,12/11/2023,17/11/2023,215.6,,New Directions Education Ltd
Schools Total,School Group 7 � Pupil Capacity 501-1800,MCC Schools,Caldicot School,Employees,Direct Employee Expenses,Agency Staff,,12/11/2023,17/11/2023,118.56,,New Directions Education Ltd
Schools Total,School Group 7 � Pupil Capacity 501-1800,MCC Schools,Caldicot School,Employees,Direct Employee Expenses,Agency Staff,,12/11/2023,17/11/2023,118.56,,New Directions Education Ltd
Schools Total,School Group 7 � Pupil Capacity 501-1800,MCC Schools,Caldicot School,Employees,Direct Employee Expenses,Agency Staff,,12/11/2023,17/11/2023,118.56,,New Directions Education Ltd
Schools Total,School Group 7 � Pupil Capacity 501-1800,MCC Schools,Caldicot School,Employees,Direct Employee Expenses,Agency Staff,,12/11/2023,17/11/2023,118.56,,New Directions Education Ltd
Schools Total,School Group 7 � Pupil Capacity 501-1800,MCC Schools,Caldicot School,Employees,Direct Employee Expenses,Agency Staff,,12/11/2023,17/11/2023,215.6,,New Directions Education Ltd
Schools Total,School Group 7 � Pupil Capacity 501-1800,MCC Schools,Caldicot School,Employees,Direct Employee Expenses,Agency Staff,,12/11/2023,17/11/2023,118.56,,New Directions Education Ltd
Schools Total,School Group 7 � Pupil Capacity 501-1800,MCC Schools,Caldicot School,Employees,Direct Employee Expenses,Agency Staff,,12/11/2023,17/11/2023,118.56,,New Directions Education Ltd
Schools Total,School Group 7 � Pupil Capacity 501-1800,MCC Schools,Caldicot School,Employees,Direct Employee Expenses,Agency Staff,,12/11/2023,17/11/2023,118.56,,New Directions Education Ltd
Schools Total,School Group 7 � Pupil Capacity 501-1800,MCC Schools,Caldicot School,Employees,Direct Employee Expenses,Agency Staff,,12/11/2023,17/11/2023,118.56,,New Directions Education Ltd
Schools Total,School Group 7 � Pupil Capacity 501-1800,MCC Schools,Caldicot School,Employees,Direct Employee Expenses,Agency Staff,,12/11/2023,17/11/2023,118.56,,New Directions Education Ltd
Schools Total,School Group 7 � Pupil Capacity 501-1800,MCC Schools,Caldicot School,Employees,Direct Employee Expenses,Agency Staff,,12/11/2023,17/11/2023,118.01,,New Directions Education Ltd
Schools Total,School Group 7 � Pupil Capacity 501-1800,MCC Schools,Caldicot School,Employees,Direct Employee Expenses,Agency Staff,,12/11/2023,17/11/2023,118.01,,New Directions Education Ltd
Schools Total,School Group 7 � Pupil Capacity 501-1800,MCC Schools,Caldicot School,Employees,Direct Employee Expenses,Agency Staff,,12/11/2023,17/11/2023,118.01,,New Directions Education Ltd
Schools Total,School Group 7 � Pupil Capacity 501-1800,MCC Schools,Caldicot School,Employees,Direct Employee Expenses,Agency Staff,,12/11/2023,17/11/2023,118.56,,New Directions Education Ltd
Schools Total,School Group 7 � Pupil Capacity 501-1800,MCC Schools,Caldicot School,Employees,Direct Employee Expenses,Agency Staff,,22/11/2023,28/11/2023,5663.42,,Teaching Personnel
Schools Total,School Group 7 � Pupil Capacity 501-1800,MCC Schools,Caldicot School,Employees,Direct Employee Expenses,Agency Staff,,22/11/2023,28/11/2023,435,,Academics
Schools Total,School Group 7 � Pupil Capacity 501-1800,MCC Schools,Caldicot School,Employees,Direct Employee Expenses,Agency Staff,,22/11/2023,28/11/2023,1861.12,,Academics
Schools Total,School Group 7 � Pupil Capacity 501-1800,MCC Schools,Chepstow School,Employees,Direct Employee Expenses,Agency Staff,,15/11/2023,23/11/2023,437.88,,Teaching Personnel
Schools Total,School Group 7 � Pupil Capacity 501-1800,MCC Schools,Caldicot School,Employees,Direct Employee Expenses,Agency Staff,,17/11/2023,28/11/2023,586.75,,SET Recruitment
Schools Total,School Group 7 � Pupil Capacity 501-1800,MCC Schools,Caldicot School,Employees,Direct Employee Expenses,Agency Staff,,22/11/2023,28/11/2023,1524.98,,Back Office Support Services Ltd (Education Supply Pool)
Schools Total,School Group 7 � Pupil Capacity 501-1800,MCC Schools,Caldicot School,Employees,Direct Employee Expenses,Agency Staff,,22/11/2023,28/11/2023,1050,,Back Office Support Services Ltd (Education Supply Pool)
Schools Total,School Group 7 � Pupil Capacity 501-1800,MCC Schools,Caldicot School,Employees,Direct Employee Expenses,Agency Staff,,22/11/2023,28/11/2023,2968.15,,Suppleo Recruitment Ltd
Schools Total,School Group 7 � Pupil Capacity 501-1800,MCC Schools,Chepstow School,Employees,Direct Employee Expenses,Agency Staff,,22/11/2023,30/11/2023,875.76,,Teaching Personnel
Schools Total,School Group 7 � Pupil Capacity 501-1800,MCC Schools,Chepstow School,Employees,Direct Employee Expenses,Agency Staff,,01/11/2023,16/11/2023,656.82,,Teaching Personnel
Schools Total,School Group 7 � Pupil Capacity 501-1800,MCC Schools,Caldicot School,Employees,Direct Employee Expenses,Agency Staff,,22/10/2023,02/11/2023,118.56,,New Directions Education Ltd
Schools Total,School Group 7 � Pupil Capacity 501-1800,MCC Schools,Caldicot School,Employees,Direct Employee Expenses,Agency Staff,,22/10/2023,02/11/2023,118.56,,New Directions Education Ltd
Schools Total,School Group 7 � Pupil Capacity 501-1800,MCC Schools,Caldicot School,Employees,Direct Employee Expenses,Agency Staff,,22/10/2023,02/11/2023,118.01,,New Directions Education Ltd
Schools Total,School Group 7 � Pupil Capacity 501-1800,MCC Schools,Caldicot School,Employees,Direct Employee Expenses,Agency Staff,,30/10/2023,10/11/2023,113.93,,Apollo Teaching Services LTD
Schools Total,School Group 7 � Pupil Capacity 501-1800,MCC Schools,Caldicot School,Employees,Direct Employee Expenses,Agency Staff,,12/11/2023,17/11/2023,215.6,,New Directions Education Ltd
Schools Total,School Group 7 � Pupil Capacity 501-1800,MCC Schools,Caldicot School,Employees,Direct Employee Expenses,Agency Staff,,12/11/2023,17/11/2023,215.6,,New Directions Education Ltd
Schools Total,School Group 7 � Pupil Capacity 501-1800,MCC Schools,Caldicot School,Employees,Direct Employee Expenses,Agency Staff,,12/11/2023,17/11/2023,215.6,,New Directions Education Ltd
Schools Total,School Group 7 � Pupil Capacity 501-1800,MCC Schools,Caldicot School,Employees,Direct Employee Expenses,Agency Staff,,22/10/2023,02/11/2023,118.01,,New Directions Education Ltd
Schools Total,School Group 7 � Pupil Capacity 501-1800,MCC Schools,Caldicot School,Employees,Direct Employee Expenses,Agency Staff,,22/10/2023,02/11/2023,215.6,,New Directions Education Ltd
"Policy, Scrutiny & Customer Service",Community Hubs,Chief Executive's Unit,Community Hub - Usk,Premises,Energy Costs,Gas.,,13/11/2023,30/11/2023,445.45,,TOTAL GAS & POWER LIMITED
Schools Total,School Group 2 � Pupil Capacity 144-314,MCC Schools,Llanfoist Fawr Primary School,Premises,Energy Costs,Gas.,,13/11/2023,30/11/2023,828.53,,TOTAL GAS & POWER LIMITED
"Facilities, Fleet & Decarbonisation",Regional Transport,Communities & Place,Ramp Up Scheme � BSSG,Supplies & Services,Grants and Subscriptions,Grants Payable,,16/11/2023,16/11/2023,699046.58,,Cardiff Bus
"Facilities, Fleet & Decarbonisation",Regional Transport,Communities & Place,Ramp Up Scheme � BSSG,Supplies & Services,Grants and Subscriptions,Grants Payable,,16/11/2023,16/11/2023,9759.47,,Edwards Coaches Ltd
"Facilities, Fleet & Decarbonisation",Regional Transport,Communities & Place,Ramp Up Scheme � BSSG,Supplies & Services,Grants and Subscriptions,Grants Payable,,16/11/2023,16/11/2023,121784.48,,First Cymru Buses Ltd
"Facilities, Fleet & Decarbonisation",Regional Transport,Communities & Place,Ramp Up Scheme � BSSG,Supplies & Services,Grants and Subscriptions,Grants Payable,,16/11/2023,16/11/2023,61208.16,,Harris Coaches
"Facilities, Fleet & Decarbonisation",Regional Transport,Communities & Place,Ramp Up Scheme � BSSG,Supplies & Services,Grants and Subscriptions,Grants Payable,,16/11/2023,16/11/2023,9341.83,,Henley's Bus Service Ltd
"Facilities, Fleet & Decarbonisation",Regional Transport,Communities & Place,Ramp Up Scheme � BSSG,Supplies & Services,Grants and Subscriptions,Grants Payable,,16/11/2023,16/11/2023,1538.32,,Keepings Coaches
"Facilities, Fleet & Decarbonisation",Regional Transport,Communities & Place,Ramp Up Scheme � BSSG,Supplies & Services,Grants and Subscriptions,Grants Payable,,16/11/2023,16/11/2023,438838.5,,Newport Transport Ltd
"Facilities, Fleet & Decarbonisation",Regional Transport,Communities & Place,Ramp Up Scheme � BSSG,Supplies & Services,Grants and Subscriptions,Grants Payable,,16/11/2023,16/11/2023,2411.71,,Peter's Minibus Hire
Adult Services,Direct Care Residential,Social Care and Health,Mardy Park Resource Team,Premises,Energy Costs,Electricity.,,01/11/2023,30/11/2023,11.8,,EDF Energy
"Facilities, Fleet & Decarbonisation",Home to School Transport Dept,Communities & Place,Home To School Transport,Premises,Energy Costs,Liquid Gas.,,30/09/2023,30/11/2023,462.56,,Calor Gas Ltd
Capital Division,Capital Dept,Capital,Capital Programme,Premises,Water Services,Water Services-Metered.,,27/09/2023,30/11/2023,291.57,,Welsh Water
Adult Services,Direct Care Residential,Social Care and Health,Mardy Park,Premises,Energy Costs,Electricity.,,31/10/2023,30/11/2023,3363.59,,EDF Energy
Schools Total,School Group 2 � Pupil Capacity 144-314,MCC Schools,Goytre Fawr Primary School,Premises,Energy Costs,Gas.,,13/11/2023,30/11/2023,455.9,,TOTAL GAS & POWER LIMITED
Schools Total,School Group 2 � Pupil Capacity 144-314,MCC Schools,Llantilio Pertholey CiW Primary School (VC),Premises,Energy Costs,Gas.,,13/11/2023,30/11/2023,1111.84,,TOTAL GAS & POWER LIMITED
Adult Services,Direct Care,Social Care and Health,Budden Crescent,Premises,Energy Costs,Gas.,,13/11/2023,30/11/2023,148.81,,TOTAL GAS & POWER LIMITED
Finance & Business Devlopment,Attractions,MonLife Directorate,Caldicot Castle & Country Park,Premises,Energy Costs,Gas.,,13/11/2023,30/11/2023,327.44,,TOTAL GAS & POWER LIMITED
"Facilities, Fleet & Decarbonisation",Regional Transport,Communities & Place,Ramp Up Scheme � BSSG,Supplies & Services,Grants and Subscriptions,Grants Payable,,16/11/2023,16/11/2023,696425.01,,Stagecoach Services Ltd
"Facilities, Fleet & Decarbonisation",Regional Transport,Communities & Place,Ramp Up Scheme � BSSG,Supplies & Services,Grants and Subscriptions,Grants Payable,,16/11/2023,16/11/2023,789.32,,Accessible Caring Transport (ACT)
"Facilities, Fleet & Decarbonisation",Regional Transport,Communities & Place,Ramp Up Scheme � BSSG,Supplies & Services,Grants and Subscriptions,Grants Payable,,16/11/2023,16/11/2023,3954,,Caerphilly CBC
"Facilities, Fleet & Decarbonisation",Regional Transport,Communities & Place,Ramp Up Scheme � BSSG,Supplies & Services,Grants and Subscriptions,Grants Payable,,16/11/2023,16/11/2023,10406.26,,Blaenau Gwent County Borough Council
"Facilities, Fleet & Decarbonisation",Regional Transport,Communities & Place,Ramp Up Scheme � BSSG,Supplies & Services,Grants and Subscriptions,Grants Payable,,16/11/2023,16/11/2023,10149.35,,Torfaen County Borough Council
Children Services,Children Services Other,Social Care and Health,Counsel Costs,Supplies & Services,Services,Legal Costs,,15/11/2023,21/11/2023,2020,,REDACTED PERSONAL DATA
Schools Total,School Group 2 � Pupil Capacity 144-314,MCC Schools,Trellech Primary School,Supplies & Services,"Equipment, Furniture and Materials",Materials & Consumables.,,20/10/2023,21/11/2023,246.62,,Uk Laser Suppliers
Schools Total,School Group 2 � Pupil Capacity 144-314,MCC Schools,Cantref Primary School,Supplies & Services,"Equipment, Furniture and Materials",Materials & Consumables.,,14/11/2023,21/11/2023,187.45,,Hope Education Ltd
Schools Total,School Group 2 � Pupil Capacity 144-314,MCC Schools,Castle Park Primary School,Premises,Water Services,Water Services-Metered.,,08/11/2023,30/11/2023,2081.78,,Welsh Water
"Commercial, Corporate & landlord Services",Property Services & Facilities Management,Resources,External Clients,Premises,Energy Costs,Liquid Gas.,,24/10/2023,30/11/2023,34.25,,Calor Gas Ltd
"Commercial, Corporate & landlord Services",Property Services & Facilities Management,Resources,External Clients,Premises,Energy Costs,Liquid Gas.,,24/10/2023,30/11/2023,34.25,,Calor Gas Ltd
"Facilities, Fleet & Decarbonisation",Regional Transport,Communities & Place,Bus Services Support Grant,Supplies & Services,Grants and Subscriptions,Grants Payable,,07/11/2023,08/11/2023,2682.41,,Bridgend Community Transport Ltd
"Facilities, Fleet & Decarbonisation",Regional Transport,Communities & Place,Bus Services Support Grant,Supplies & Services,Grants and Subscriptions,Grants Payable,,07/11/2023,08/11/2023,3967.85,,Caerphilly CBC
Schools Total,School Group 2 � Pupil Capacity 144-314,MCC Schools,Kymin View Primary School,Premises,Energy Costs,Electricity.,,01/11/2023,30/11/2023,3928.24,,EDF Energy
Schools Total,School Group 2 � Pupil Capacity 144-314,MCC Schools,Llanfoist Fawr Primary School,Premises,Energy Costs,Electricity.,,01/11/2023,30/11/2023,3095.87,,EDF Energy
"Commercial, Corporate & landlord Services",Asset Management,Resources,Cemeteries,Premises,Energy Costs,Electricity.,,06/11/2023,30/11/2023,13.25,,EDF Energy
Finance & Business Devlopment,Attractions,MonLife Directorate,Caldicot Castle & Country Park,Premises,Energy Costs,Electricity.,,06/11/2023,30/11/2023,961.7,,EDF Energy
"Facilities, Fleet & Decarbonisation",Home to School Transport Dept,Communities & Place,Home To School Transport,Premises,Energy Costs,Electricity.,,01/11/2023,30/11/2023,1.89,,EDF Energy
"Facilities, Fleet & Decarbonisation",Home to School Transport Dept,Communities & Place,Home To School Transport,Premises,Energy Costs,Electricity.,,29/10/2023,30/11/2023,-0.11,,EDF Energy
"Facilities, Fleet & Decarbonisation",Home to School Transport Dept,Communities & Place,Home To School Transport,Premises,Energy Costs,Electricity.,,29/10/2023,30/11/2023,-228.01,,EDF Energy
Neighbourhood Services,Waste and Street Services,Communities & Place,Refuse & Cleansing Operations,Premises,Energy Costs,Electricity.,,31/10/2023,30/11/2023,37.73,,EDF Energy
Schools Total,School Group 2 � Pupil Capacity 144-314,MCC Schools,Usk CiW Primary School (VC),Premises,Energy Costs,Electricity.,,31/10/2023,30/11/2023,2631.09,,EDF Energy
Schools Total,School Group 2 � Pupil Capacity 144-314,MCC Schools,Usk CiW Primary School (VC),Premises,Energy Costs,Electricity.,,31/10/2023,30/11/2023,14.73,,EDF Energy
"Policy, Scrutiny & Customer Service",Community Hubs,Chief Executive's Unit,Community Hub - Monmouth,Premises,Energy Costs,Electricity.,,31/10/2023,30/11/2023,780.94,,EDF Energy
"Enterprise, Housing & Community Animation",General Fund Housing,Communities & Place,Lodgings Scheme,Premises,Energy Costs,Electricity.,,06/11/2023,30/11/2023,-9.36,,EDF Energy
"Enterprise, Housing & Community Animation",General Fund Housing,Communities & Place,Lodgings Scheme,Premises,Energy Costs,Electricity.,,06/11/2023,30/11/2023,0.03,,EDF Energy
"Enterprise, Housing & Community Animation",General Fund Housing,Communities & Place,Lodgings Scheme,Premises,Energy Costs,Electricity.,,06/11/2023,30/11/2023,7.98,,EDF Energy
Neighbourhood Services,Waste and Street Services,Communities & Place,Refuse & Cleansing Operations,Premises,Energy Costs,Electricity.,,31/10/2023,30/11/2023,212.97,,EDF Energy
Schools Total,School Group 2 � Pupil Capacity 144-314,MCC Schools,Gilwern Primary School,Supplies & Services,Services,Professional And Specialist Fees,,18/10/2023,01/11/2023,1440,,REDACTED PERSONAL DATA
"Commercial, Corporate & landlord Services",Asset Management,Resources,Cemeteries,Premises,Energy Costs,Electricity.,,02/11/2023,30/11/2023,-0.02,,EDF Energy
"Commercial, Corporate & landlord Services",Asset Management,Resources,Cemeteries,Premises,Energy Costs,Electricity.,,02/11/2023,30/11/2023,-19.21,,EDF Energy
"Leisure, Youth & Outdoor Adventure",Leisure Services,MonLife Directorate,Chepstow Leisure Centre,Premises,Energy Costs,Electricity.,,01/11/2023,30/11/2023,9190.1,,EDF Energy
"Commercial, Corporate & landlord Services",Asset Management,Resources,Shared Accomodation,Premises,Energy Costs,Electricity.,,06/11/2023,30/11/2023,276.81,,EDF Energy
"Policy, Scrutiny & Customer Service",Community Hubs,Chief Executive's Unit,Community Hub - Caldicot,Premises,Energy Costs,Electricity.,,31/10/2023,30/11/2023,622.23,,EDF Energy
Finance & Business Devlopment,Attractions,MonLife Directorate,Shirehall,Premises,Energy Costs,Electricity.,,01/11/2023,30/11/2023,1478.54,,EDF Energy
"Commercial, Corporate & landlord Services",Asset Management,Resources,Cemeteries,Premises,Energy Costs,Electricity.,,02/11/2023,30/11/2023,0.03,,EDF Energy
"Commercial, Corporate & landlord Services",Asset Management,Resources,Cemeteries,Premises,Energy Costs,Electricity.,,02/11/2023,30/11/2023,12.41,,EDF Energy
"Commercial, Corporate & landlord Services",Asset Management,Resources,Cemeteries,Premises,Energy Costs,Electricity.,,02/11/2023,30/11/2023,-0.03,,EDF Energy
"Facilities, Fleet & Decarbonisation",Home to School Transport Dept,Communities & Place,Home To School Transport,Premises,Energy Costs,Electricity.,,29/10/2023,30/11/2023,-100.01,,EDF Energy
Capital Division,Capital Dept,Capital,Capital Programme,Supplies & Services,Services,Professional And Specialist Fees,,23/11/2023,01/12/2023,2360,,Up And Under Ltd
Capital Division,Capital Dept,Capital,Capital Programme,Supplies & Services,Services,Professional And Specialist Fees,,10/11/2023,23/11/2023,840,,Mackley Davies Associates Limited
Control Division,Control Dept,Control,Creditors Suspense Account,Current Liabilities,Short Term Creditors,Creditor Suspense,,24/08/2023,28/11/2023,23598.96,,Fitronics Limited
Capital Division,Capital Dept,Capital,Capital Programme,Supplies & Services,Services,Professional And Specialist Fees,,10/11/2023,23/11/2023,840,,Mackley Davies Associates Limited
"Facilities, Fleet & Decarbonisation",Transport Department,Communities & Place,Transport,Transport,Direct Transport Costs,Vehicle Collision Damage Costs,,27/10/2023,17/11/2023,950,,Spot on mobile repairs
"Facilities, Fleet & Decarbonisation",Transport Department,Communities & Place,Transport,Transport,Direct Transport Costs,Spare Parts,,23/11/2023,01/12/2023,-426.84,,Mon & Border Motor Factors Ltd
"Facilities, Fleet & Decarbonisation",Home to School Transport Dept,Communities & Place,School Transport � External,Transport,Direct Transport Costs,Petrol,,22/11/2023,28/11/2023,280.8,,REDACTED PERSONAL DATA
"Facilities, Fleet & Decarbonisation",Home to School Transport Dept,Communities & Place,School Transport � External,Transport,Direct Transport Costs,Petrol,,13/11/2023,28/11/2023,280.8,,REDACTED PERSONAL DATA
"Facilities, Fleet & Decarbonisation",Home to School Transport Dept,Communities & Place,Home To School Transport,Transport,Direct Transport Costs,Vechicles Repairs and Maintenance,,27/10/2023,09/11/2023,195,,Bulwark Bus & Coach Eng. Ltd
"Facilities, Fleet & Decarbonisation",Transport Department,Communities & Place,Transport,Transport,Direct Transport Costs,Vehicle Collision Damage Costs,,16/10/2023,09/11/2023,120,,T's Auto Electrics
"Facilities, Fleet & Decarbonisation",Transport Department,Communities & Place,Transport,Transport,Direct Transport Costs,Vehicle Collision Damage Costs,,16/10/2023,09/11/2023,120,,T's Auto Electrics
"Facilities, Fleet & Decarbonisation",Transport Department,Communities & Place,Transport,Transport,Direct Transport Costs,Vehicle Collision Damage Costs,,18/10/2023,09/11/2023,140,,T's Auto Electrics
"Facilities, Fleet & Decarbonisation",Home to School Transport Dept,Communities & Place,Home To School Transport,Transport,Direct Transport Costs,Vechicles Repairs and Maintenance,,30/10/2023,09/11/2023,569,,Bulwark Bus & Coach Eng. Ltd
"Facilities, Fleet & Decarbonisation",Home to School Transport Dept,Communities & Place,Home To School Transport,Transport,Direct Transport Costs,Vechicles Repairs and Maintenance,,04/10/2023,09/11/2023,758.36,,Malvern Tyres (Wholesale) Ltd
"Facilities, Fleet & Decarbonisation",Home to School Transport Dept,Communities & Place,Home To School Transport,Transport,Direct Transport Costs,Vechicles Repairs and Maintenance,,23/10/2023,09/11/2023,379.18,,Malvern Tyres (Wholesale) Ltd
"Facilities, Fleet & Decarbonisation",Home to School Transport Dept,Communities & Place,Home To School Transport,Transport,Direct Transport Costs,Vechicles Repairs and Maintenance,,15/11/2022,09/11/2023,54.2,,Culligan (UK) Limited
"Facilities, Fleet & Decarbonisation",Home to School Transport Dept,Communities & Place,Passenger Transport � Service 65,Transport,Direct Transport Costs,Vechicles Repairs and Maintenance,,27/10/2023,09/11/2023,115,,Btac Bristol Ltd
"Facilities, Fleet & Decarbonisation",Home to School Transport Dept,Communities & Place,Home To School Transport,Transport,Direct Transport Costs,Vechicles Repairs and Maintenance,,31/10/2023,09/11/2023,365,,Bulwark Bus & Coach Eng. Ltd
"Facilities, Fleet & Decarbonisation",Home to School Transport Dept,Communities & Place,Home To School Transport,Transport,Direct Transport Costs,Vechicles Repairs and Maintenance,,31/10/2023,09/11/2023,533.48,,Bulwark Bus & Coach Eng. Ltd
"Facilities, Fleet & Decarbonisation",Home to School Transport Dept,Communities & Place,Home To School Transport,Transport,Direct Transport Costs,Vechicles Repairs and Maintenance,,02/11/2023,09/11/2023,260,,Bulwark Bus & Coach Eng. Ltd
"Facilities, Fleet & Decarbonisation",Home to School Transport Dept,Communities & Place,Home To School Transport,Transport,Direct Transport Costs,Vechicles Repairs and Maintenance,,01/11/2023,09/11/2023,1695,,Btac Bristol Ltd
"Facilities, Fleet & Decarbonisation",Home to School Transport Dept,Communities & Place,Home To School Transport,Transport,Direct Transport Costs,Vechicles Repairs and Maintenance,,03/11/2023,09/11/2023,1695,,Btac Bristol Ltd
"Facilities, Fleet & Decarbonisation",Home to School Transport Dept,Communities & Place,Home To School Transport,Transport,Direct Transport Costs,Vechicles Repairs and Maintenance,,03/11/2023,09/11/2023,1762.02,,Bulwark Bus & Coach Eng. Ltd
"Facilities, Fleet & Decarbonisation",Home to School Transport Dept,Communities & Place,Home To School Transport,Transport,Direct Transport Costs,Vechicles Repairs and Maintenance,,06/11/2023,09/11/2023,115,,Btac Bristol Ltd
"Facilities, Fleet & Decarbonisation",Transport Department,Communities & Place,Transport,Transport,Direct Transport Costs,Vehicle Collision Damage Costs,,31/10/2023,02/11/2023,165.09,,Euro Commercials (South Wales) L
"Facilities, Fleet & Decarbonisation",Transport Department,Communities & Place,Transport,Transport,Direct Transport Costs,Spare Parts,,30/10/2023,02/11/2023,60.34,,Euro Commercials (South Wales) L
"Facilities, Fleet & Decarbonisation",Transport Department,Communities & Place,Transport,Transport,Direct Transport Costs,Spare Parts,,30/10/2023,02/11/2023,454.5,,Euro Commercials (South Wales) L
"Facilities, Fleet & Decarbonisation",Transport Department,Communities & Place,Transport,Transport,Direct Transport Costs,Spare Parts,,31/10/2023,02/11/2023,183.43,,Euro Commercials (South Wales) L
"Facilities, Fleet & Decarbonisation",Transport Department,Communities & Place,Transport,Transport,Direct Transport Costs,Tyres And Tubes,,02/10/2023,02/11/2023,233.06,,Malvern Tyres (Wholesale) Ltd
"Facilities, Fleet & Decarbonisation",Transport Department,Communities & Place,Transport,Transport,Direct Transport Costs,Tyres And Tubes,,03/10/2023,02/11/2023,387.64,,Malvern Tyres (Wholesale) Ltd
"Facilities, Fleet & Decarbonisation",Transport Department,Communities & Place,Transport,Transport,Direct Transport Costs,Tyres And Tubes,,04/10/2023,02/11/2023,179.46,,Malvern Tyres (Wholesale) Ltd
"Facilities, Fleet & Decarbonisation",Transport Department,Communities & Place,Transport,Transport,Direct Transport Costs,Tyres And Tubes,,04/10/2023,02/11/2023,30,,Malvern Tyres (Wholesale) Ltd
"Facilities, Fleet & Decarbonisation",Transport Department,Communities & Place,Transport,Transport,Direct Transport Costs,Tyres And Tubes,,09/10/2023,02/11/2023,16.6,,Malvern Tyres (Wholesale) Ltd
"Facilities, Fleet & Decarbonisation",Transport Department,Communities & Place,Transport,Transport,Direct Transport Costs,Tyres And Tubes,,10/10/2023,02/11/2023,597.64,,Malvern Tyres (Wholesale) Ltd
"Facilities, Fleet & Decarbonisation",Transport Department,Communities & Place,Transport,Transport,Direct Transport Costs,Tyres And Tubes,,11/10/2023,02/11/2023,381.13,,Malvern Tyres (Wholesale) Ltd
"Facilities, Fleet & Decarbonisation",Transport Department,Communities & Place,Transport,Transport,Direct Transport Costs,Tyres And Tubes,,12/10/2023,02/11/2023,395.43,,Malvern Tyres (Wholesale) Ltd
"Facilities, Fleet & Decarbonisation",Home to School Transport Dept,Communities & Place,Home To School Transport,Transport,Direct Transport Costs,Vechicles Repairs and Maintenance,,06/11/2023,09/11/2023,336.7,,Bulwark Bus & Coach Eng. Ltd
Neighbourhood Services,Highways,Communities & Place,Capital - Permanent Patching,Transport,Direct Transport Costs,Transportation of Supplies,,22/09/2023,20/11/2023,200,,Clee Hill Plant Ltd
Neighbourhood Services,Highways,Communities & Place,Capital - Permanent Patching,Transport,Direct Transport Costs,Transportation of Supplies,,30/09/2023,20/11/2023,195,,Clee Hill Plant Ltd
"Facilities, Fleet & Decarbonisation",Regional Transport,Communities & Place,Bus Services Support Grant,Supplies & Services,Grants and Subscriptions,Grants Payable,,07/11/2023,08/11/2023,978.46,,Caerphilly CBC
"Facilities, Fleet & Decarbonisation",Regional Transport,Communities & Place,Bus Services Support Grant,Supplies & Services,Grants and Subscriptions,Grants Payable,,07/11/2023,08/11/2023,142.69,,REDACTED PERSONAL DATA
"Commercial, Corporate & landlord Services",Property Services & Facilities Management,Resources,Magor Accommodation,Premises,Energy Costs,Gas.,,13/11/2023,30/11/2023,1636.04,,TOTAL GAS & POWER LIMITED
Schools Total,School Group 2 � Pupil Capacity 144-314,MCC Schools,Dewstow Primary School,Premises,Energy Costs,Gas.,,13/11/2023,30/11/2023,1328.53,,TOTAL GAS & POWER LIMITED
Schools Total,School Group 2 � Pupil Capacity 144-314,MCC Schools,Ysgol Gymraeg Y Fenni,Premises,Energy Costs,Gas.,,13/11/2023,30/11/2023,726.35,,TOTAL GAS & POWER LIMITED
Schools Total,School Group 2 � Pupil Capacity 144-314,MCC Schools,Trellech Primary School,Supplies & Services,"Equipment, Furniture and Materials",Materials & Consumables.,,09/10/2023,07/11/2023,172.44,,Uk Laser Suppliers
Schools Total,SCHGRP3 � School Group 3 � Pupil Capacity 315-500,MCC Schools,The Dell Primary School,Supplies & Services,"Equipment, Furniture and Materials",Materials & Consumables.,,06/09/2023,07/11/2023,4.17,,Young Voices
Schools Total,SCHGRP3 � School Group 3 � Pupil Capacity 315-500,MCC Schools,The Dell Primary School,Supplies & Services,"Equipment, Furniture and Materials",Materials & Consumables.,,06/09/2023,07/11/2023,87.5,,Young Voices
"Facilities, Fleet & Decarbonisation",Regional Transport,Communities & Place,Bus Services Support Grant,Supplies & Services,Grants and Subscriptions,Grants Payable,,07/11/2023,08/11/2023,113.77,,East Vale Community Transport
"Facilities, Fleet & Decarbonisation",Regional Transport,Communities & Place,Bus Services Support Grant,Supplies & Services,Grants and Subscriptions,Grants Payable,,07/11/2023,08/11/2023,1564.87,,Newport City Council
Schools Total,SCHGRP3 � School Group 3 � Pupil Capacity 315-500,MCC Schools,Overmonnow Primary School,Supplies & Services,"Equipment, Furniture and Materials",Materials & Consumables.,,20/11/2023,27/11/2023,3.29,,Hope Education Ltd
Schools Total,School Group 2 � Pupil Capacity 144-314,MCC Schools,Cantref Primary School,Premises,Water Services,Water Services-Metered.,,08/11/2023,30/11/2023,2280.8,,Welsh Water
Schools Total,School Group 2 � Pupil Capacity 144-314,MCC Schools,Cantref Primary School,Premises,Water Services,Water Services-Metered.,,08/11/2023,30/11/2023,70.5,,Welsh Water
"Facilities, Fleet & Decarbonisation",Regional Transport,Communities & Place,Bus Services Support Grant,Supplies & Services,Grants and Subscriptions,Grants Payable,,07/11/2023,08/11/2023,1963.92,,Torfaen Community Transport
"Facilities, Fleet & Decarbonisation",Regional Transport,Communities & Place,Bus Services Support Grant,Supplies & Services,Grants and Subscriptions,Grants Payable,,07/11/2023,08/11/2023,2825.05,,Travol Community Transport
"Facilities, Fleet & Decarbonisation",Regional Transport,Communities & Place,Bus Services Support Grant,Supplies & Services,Grants and Subscriptions,Grants Payable,,07/11/2023,08/11/2023,2163.65,,Vale Of Glamorgan Council
"Facilities, Fleet & Decarbonisation",Regional Transport,Communities & Place,Bus Services Support Grant,Supplies & Services,Grants and Subscriptions,Grants Payable,,07/11/2023,08/11/2023,779.62,,Voluntary Emergency Service Transport
Schools Total,School Group 7 � Pupil Capacity 501-1800,MCC Schools,Monmouth Comprehensive,Premises,Energy Costs,Gas.,,13/11/2023,30/11/2023,6005.68,,TOTAL GAS & POWER LIMITED
Schools Total,School Group 2 � Pupil Capacity 144-314,MCC Schools,Cross Ash Primary School,Premises,Energy Costs,Liquid Gas.,,07/11/2023,30/11/2023,549.49,,Calor Gas Ltd
"Facilities, Fleet & Decarbonisation",Regional Transport,Communities & Place,Bus Services Support Grant,Supplies & Services,Grants and Subscriptions,Grants Payable,,07/11/2023,08/11/2023,572.81,,Village and Valleys
"Facilities, Fleet & Decarbonisation",Home to School Transport Dept,Communities & Place,Home To School Transport,Premises,Energy Costs,Liquid Gas.,,08/11/2023,30/11/2023,295.89,,Calor Gas Ltd
Schools Total,School Group 2 � Pupil Capacity 144-314,MCC Schools,Durand Primary School,Premises,Energy Costs,Gas.,,13/11/2023,30/11/2023,29.43,,TOTAL GAS & POWER LIMITED
"Enterprise, Housing & Community Animation",General Fund Housing,Communities & Place,Lodgings Scheme,Premises,Energy Costs,Gas.,,20/11/2023,30/11/2023,296.59,,British Gas Trading Ltd
Schools Total,School Group 2 � Pupil Capacity 144-314,MCC Schools,Dewstow Primary School,Supplies & Services,"Equipment, Furniture and Materials",Materials & Consumables.,,04/09/2023,24/11/2023,154.98,,TTS Group Ltd
Schools Total,School Group 2 � Pupil Capacity 144-314,MCC Schools,Dewstow Primary School,Supplies & Services,"Equipment, Furniture and Materials",Materials & Consumables.,,04/09/2023,24/11/2023,-154.98,,TTS Group Ltd
Schools Total,School Group 2 � Pupil Capacity 144-314,MCC Schools,Dewstow Primary School,Supplies & Services,"Equipment, Furniture and Materials",Materials & Consumables.,,25/07/2023,24/11/2023,603.1,,Cambridge University Press
Schools Total,School Group 2 � Pupil Capacity 144-314,MCC Schools,Dewstow Primary School,Supplies & Services,"Equipment, Furniture and Materials",Materials & Consumables.,,25/07/2023,24/11/2023,-41.56,,Cambridge University Press
Schools Total,School Group 2 � Pupil Capacity 144-314,MCC Schools,Dewstow Primary School,Supplies & Services,"Equipment, Furniture and Materials",Materials & Consumables.,,25/07/2023,24/11/2023,41.56,,Cambridge University Press
"Facilities, Fleet & Decarbonisation",Regional Transport,Communities & Place,Bus Services Support Grant,Supplies & Services,Grants and Subscriptions,Grants Payable,,07/11/2023,08/11/2023,2638.59,,Accessible Caring Transport (ACT)
"Facilities, Fleet & Decarbonisation",Regional Transport,Communities & Place,Bus Services Support Grant,Supplies & Services,Grants and Subscriptions,Grants Payable,,07/11/2023,08/11/2023,2267.73,,Bridgend County Borough Council
Schools Total,School Group 2 � Pupil Capacity 144-314,MCC Schools,Dewstow Primary School,Supplies & Services,"Equipment, Furniture and Materials",Materials & Consumables.,,04/09/2023,24/11/2023,1853.23,,TTS Group Ltd
Schools Total,School Group 2 � Pupil Capacity 144-314,MCC Schools,Osbaston CiW Primary School (VC),Supplies & Services,"Equipment, Furniture and Materials",Materials & Consumables.,,03/11/2023,21/11/2023,9.99,,Handyman House (Lydney) Ltd
Capital Division,Capital Dept,Capital,Capital Programme,Supplies & Services,Services,Professional And Specialist Fees,,10/11/2023,23/11/2023,120,,Mackley Davies Associates Limited
Capital Division,Capital Dept,Capital,Capital Programme,Supplies & Services,Services,Professional And Specialist Fees,,12/10/2023,03/11/2023,2000,,TERRA FIRMA (WALES) Ltd
Control Division,Control Dept,Control,Creditors Suspense Account,Current Liabilities,Short Term Creditors,Creditor Suspense,,01/11/2023,01/11/2023,864,,City of Doncaster Council
"Facilities, Fleet & Decarbonisation",Home to School Transport Dept,Communities & Place,Home To School Transport,Premises,Energy Costs,Electricity.,,29/10/2023,30/11/2023,-93.73,,EDF Energy
"Facilities, Fleet & Decarbonisation",Home to School Transport Dept,Communities & Place,Home To School Transport,Premises,Energy Costs,Electricity.,,29/10/2023,30/11/2023,-42.37,,EDF Energy
"Facilities, Fleet & Decarbonisation",Home to School Transport Dept,Communities & Place,Home To School Transport,Premises,Energy Costs,Electricity.,,29/10/2023,30/11/2023,96.7,,EDF Energy
Schools Total,School Group 2 � Pupil Capacity 144-314,MCC Schools,Ysgol Gymraeg Y Fenni,Premises,Energy Costs,Electricity.,,01/11/2023,30/11/2023,4013.79,,EDF Energy
"Commercial, Corporate & landlord Services",Asset Management,Resources,Cemeteries,Premises,Energy Costs,Electricity.,,30/10/2023,30/11/2023,86.55,,EDF Energy
Capital Division,Capital Dept,Capital,Capital Programme,Supplies & Services,Services,Professional And Specialist Fees,,31/10/2023,09/11/2023,20849.4,,Eco Vigour Ltd
"Policy, Scrutiny & Customer Service",Community Hubs,Chief Executive's Unit,Prison Libraries,Supplies & Services,"Printing, Stationery and General Office Expenses",Book Purchases,,06/11/2023,09/11/2023,37.37,,Askews & Holts Library Services Ltd
"Policy, Scrutiny & Customer Service",Community Hubs,Chief Executive's Unit,Strategic Management,Supplies & Services,"Printing, Stationery and General Office Expenses",Book Purchases,,06/11/2023,09/11/2023,1029.96,,Askews & Holts Library Services Ltd
"Policy, Scrutiny & Customer Service",Community Hubs,Chief Executive's Unit,Strategic Management,Supplies & Services,"Printing, Stationery and General Office Expenses",Book Purchases,,06/11/2023,09/11/2023,733.98,,Askews & Holts Library Services Ltd
Corporate (COL),Corporate (COL),Corporate Costs & Levies,Corporate Management (CM),Supplies & Services,Services,Professional And Specialist Fees,,31/10/2023,03/11/2023,17500.58,,Wales Audit Office
Neighbourhood Services,Waste and Street Services,Communities & Place,Refuse & Cleansing Operations,Premises,Energy Costs,Electricity.,,01/11/2023,30/11/2023,15.56,,EDF Energy
"Commercial, Corporate & landlord Services",Property Services & Facilities Management,Resources,Central Accommodation,Premises,Energy Costs,Electricity.,,01/11/2023,30/11/2023,6381.29,,EDF Energy
Schools Total,School Group 2 � Pupil Capacity 144-314,MCC Schools,Castle Park Primary School,Premises,Energy Costs,Electricity.,,01/11/2023,30/11/2023,2111.67,,EDF Energy
"Facilities, Fleet & Decarbonisation",De-Carbonisation,Communities & Place,Solar Farm,Premises,Energy Costs,Electricity.,,01/11/2023,30/11/2023,828.21,,EDF Energy
"Enterprise, Housing & Community Animation",General Fund Housing,Communities & Place,Lodgings Scheme,Premises,Energy Costs,Electricity.,,06/11/2023,30/11/2023,0.04,,EDF Energy
"Enterprise, Housing & Community Animation",General Fund Housing,Communities & Place,Lodgings Scheme,Premises,Energy Costs,Electricity.,,06/11/2023,30/11/2023,28.98,,EDF Energy
"Leisure, Youth & Outdoor Adventure",Leisure Services,MonLife Directorate,Monmouth Leisure Centre,Supplies & Services,"Printing, Stationery and General Office Expenses",Stationery,,20/11/2023,24/11/2023,71.6,,Mr Paper Ltd
"Leisure, Youth & Outdoor Adventure",Leisure Services,MonLife Directorate,Raglan CRC,Premises,Energy Costs,Electricity.,,06/11/2023,30/11/2023,137.27,,EDF Energy
Finance & Business Devlopment,Attractions,MonLife Directorate,Old Station Tintern,Premises,Energy Costs,Electricity.,,31/10/2023,30/11/2023,168.68,,EDF Energy
"Commercial, Corporate & landlord Services",Property Services & Facilities Management,Resources,Central Accommodation,Premises,Energy Costs,Electricity.,,31/10/2023,30/11/2023,393.77,,EDF Energy
"Enterprise, Housing & Community Animation",General Fund Housing,Communities & Place,Lodgings Scheme,Premises,Energy Costs,Electricity.,,06/11/2023,30/11/2023,10.94,,EDF Energy
"Enterprise, Housing & Community Animation",General Fund Housing,Communities & Place,Lodgings Scheme,Premises,Energy Costs,Electricity.,,06/11/2023,30/11/2023,-0.01,,EDF Energy
"Enterprise, Housing & Community Animation",General Fund Housing,Communities & Place,Lodgings Scheme,Premises,Energy Costs,Electricity.,,06/11/2023,30/11/2023,-9.55,,EDF Energy
"Commercial, Corporate & landlord Services",Asset Management,Resources,Cemeteries,Premises,Energy Costs,Electricity.,,02/11/2023,30/11/2023,-19.52,,EDF Energy
"Facilities, Fleet & Decarbonisation",Property Services -  Cleaning,Communities & Place,Public Conveniences,Premises,Energy Costs,Electricity.,,16/10/2023,30/11/2023,52.04,,EDF Energy
"Facilities, Fleet & Decarbonisation",Home to School Transport Dept,Communities & Place,Home To School Transport,Premises,Energy Costs,Electricity.,,29/10/2023,30/11/2023,90.84,,EDF Energy
Finance & Business Devlopment,Museums,MonLife Directorate,Museums Monmouth,Premises,Energy Costs,Electricity.,,31/10/2023,30/11/2023,409.77,,EDF Energy
"Policy, Scrutiny & Customer Service",Community Hubs,Chief Executive's Unit,Community Hub - Caldicot,Premises,Energy Costs,Electricity.,,24/03/2023,30/11/2023,-301.54,,EDF Energy
"Commercial, Corporate & landlord Services",Property Services & Facilities Management,Resources,Reactive Maintenance,Premises,"Repairs, Alterations & Maintenance of Buildings",Building Improvements / Maintenance,,23/11/2023,01/12/2023,46,,A.J Quinn Building Contractors Ltd
"Commercial, Corporate & landlord Services",Property Services & Facilities Management,Resources,Reactive Maintenance,Premises,"Repairs, Alterations & Maintenance of Buildings",Building Improvements / Maintenance,,23/11/2023,01/12/2023,49.26,,A.J Quinn Building Contractors Ltd
"Commercial, Corporate & landlord Services",Property Services & Facilities Management,Resources,External Clients,Premises,"Repairs, Alterations & Maintenance of Buildings",Building Improvements / Maintenance,,07/11/2023,01/12/2023,676.26,,A.J Quinn Building Contractors Ltd
"Commercial, Corporate & landlord Services",Property Services & Facilities Management,Resources,Reactive Maintenance,Premises,"Repairs, Alterations & Maintenance of Buildings",Building Improvements / Maintenance,,26/10/2023,24/11/2023,566.8,,A.J Quinn Building Contractors Ltd
"Commercial, Corporate & landlord Services",Property Services & Facilities Management,Resources,Reactive Maintenance,Premises,"Repairs, Alterations & Maintenance of Buildings",Building Improvements / Maintenance,,23/10/2023,24/11/2023,133.3,,A.J Quinn Building Contractors Ltd
"Commercial, Corporate & landlord Services",Property Services & Facilities Management,Resources,Reactive Maintenance,Premises,"Repairs, Alterations & Maintenance of Buildings",Building Improvements / Maintenance,,23/10/2023,24/11/2023,103.5,,A.J Quinn Building Contractors Ltd
Finance & Business Devlopment,Attractions,MonLife Directorate,Old Station Tintern,Supplies & Services,Catering,Cafe,,31/10/2023,01/11/2023,14.27,,Castell Howell Foods Ltd
Finance & Business Devlopment,Attractions,MonLife Directorate,Old Station Tintern,Supplies & Services,Catering,Cafe,,31/10/2023,01/11/2023,166.55,,Castell Howell Foods Ltd
Finance & Business Devlopment,Attractions,MonLife Directorate,Old Station Tintern,Supplies & Services,Catering,Cafe,,24/10/2023,01/11/2023,36.87,,The Pie House At Cinderhill Farm Limited
Finance & Business Devlopment,Attractions,MonLife Directorate,Old Station Tintern,Supplies & Services,Catering,Cafe,,29/10/2023,01/11/2023,430.8,,Raglan Dairy Ltd
"Commercial, Corporate & landlord Services",Property Services & Facilities Management,Resources,Reactive Maintenance,Premises,"Repairs, Alterations & Maintenance of Buildings",Building Improvements / Maintenance,,14/09/2023,08/11/2023,15.76,,Fire Safety Direct
"Commercial, Corporate & landlord Services",Property Services & Facilities Management,Resources,Reactive Maintenance,Premises,"Repairs, Alterations & Maintenance of Buildings",Building Improvements / Maintenance,,14/09/2023,08/11/2023,48.46,,Fire Safety Direct
"Commercial, Corporate & landlord Services",Property Services & Facilities Management,Resources,Reactive Maintenance,Premises,"Repairs, Alterations & Maintenance of Buildings",Building Improvements / Maintenance,,21/09/2023,08/11/2023,51.24,,Fire Safety Direct
Public Protection,"Registrations B, D and M",Social Care and Health,"Registrations B,D & M",Supplies & Services,"Equipment, Furniture and Materials",Provisions.,,30/03/2023,09/11/2023,75.1,,Culligan (UK) Limited
Adult Services,Direct Care Residential,Social Care and Health,Severn View Residential,Supplies & Services,"Equipment, Furniture and Materials",Provisions.,,24/10/2023,09/11/2023,322.42,,Castell Howell Foods Ltd
Adult Services,Direct Care Residential,Social Care and Health,Severn View Residential,Supplies & Services,"Equipment, Furniture and Materials",Provisions.,,24/10/2023,09/11/2023,39.91,,Castell Howell Foods Ltd
Adult Services,Direct Care Residential,Social Care and Health,Severn View Residential,Supplies & Services,"Equipment, Furniture and Materials",Provisions.,,24/10/2023,09/11/2023,-39.91,,Castell Howell Foods Ltd
Adult Services,Community Care Team,Social Care and Health,Mental Health Care Team,Third Party Payments,Third Party,Personal Care.,,19/09/2023,09/11/2023,2050.66,,Radis Community Care
Adult Services,Community Care Team,Social Care and Health,Mental Health Care Team,Third Party Payments,Third Party,Personal Care.,,31/10/2023,09/11/2023,-238.1,,Radis Community Care
"Commercial, Corporate & landlord Services",Property Services & Facilities Management,Resources,Reactive Maintenance,Premises,"Repairs, Alterations & Maintenance of Buildings",Building Improvements / Maintenance,,31/10/2023,06/11/2023,125,,Industrial Door Services
Adult Services,Community Care Team,Social Care and Health,Mental Health Care Team,Third Party Payments,Third Party,Personal Care.,,20/10/2023,06/11/2023,4884.2,,Achieve Together Limited
Adult Services,ADULT DISABILITY SERVICES,Social Care and Health,CLDT,Third Party Payments,Third Party,Personal Care.,,23/10/2023,06/11/2023,600,,Wellies Farm & Garden CIC
Adult Services,ADULT DISABILITY SERVICES,Social Care and Health,CLDT,Third Party Payments,Third Party,Personal Care.,,01/11/2023,06/11/2023,431.25,,Achieve Together Limited
"Commercial, Corporate & landlord Services",Property Services & Facilities Management,Resources,Reactive Maintenance,Premises,"Repairs, Alterations & Maintenance of Buildings",Building Improvements / Maintenance,,31/10/2023,08/11/2023,170,,Industrial Door Services
"Commercial, Corporate & landlord Services",Property Services & Facilities Management,Resources,Reactive Maintenance,Premises,"Repairs, Alterations & Maintenance of Buildings",Building Improvements / Maintenance,,27/09/2023,08/11/2023,176.72,,EFS Systems (UK) Ltd
"Commercial, Corporate & landlord Services",Property Services & Facilities Management,Resources,Reactive Maintenance,Premises,"Repairs, Alterations & Maintenance of Buildings",Building Improvements / Maintenance,,09/10/2023,09/11/2023,56.89,,A.J Quinn Building Contractors Ltd
"Commercial, Corporate & landlord Services",Property Services & Facilities Management,Resources,Reactive Maintenance,Premises,"Repairs, Alterations & Maintenance of Buildings",Building Improvements / Maintenance,,12/10/2023,09/11/2023,150.96,,A.J Quinn Building Contractors Ltd
"Commercial, Corporate & landlord Services",Property Services & Facilities Management,Resources,Reactive Maintenance,Premises,"Repairs, Alterations & Maintenance of Buildings",Building Improvements / Maintenance,,12/10/2023,09/11/2023,34.5,,A.J Quinn Building Contractors Ltd
Adult Services,Direct Care Residential,Social Care and Health,Severn View Residential,Supplies & Services,"Equipment, Furniture and Materials",Provisions.,,16/11/2023,24/11/2023,591.15,,Castell Howell Foods Ltd
Adult Services,Direct Care Residential,Social Care and Health,Severn View Residential,Supplies & Services,"Equipment, Furniture and Materials",Provisions.,,16/11/2023,24/11/2023,-52.2,,Castell Howell Foods Ltd
Adult Services,Direct Care Residential,Social Care and Health,Severn View Residential,Supplies & Services,"Equipment, Furniture and Materials",Provisions.,,16/11/2023,24/11/2023,52.2,,Castell Howell Foods Ltd
Adult Services,Direct Care Residential,Social Care and Health,Severn View Residential,Supplies & Services,"Equipment, Furniture and Materials",Provisions.,,02/11/2023,24/11/2023,128.98,,Dole
Adult Services,Direct Care Residential,Social Care and Health,Severn View Residential,Supplies & Services,"Equipment, Furniture and Materials",Provisions.,,14/11/2023,24/11/2023,100.5,,Dole
Adult Services,Direct Care,Social Care and Health,Monmouthshire Meals,Supplies & Services,"Equipment, Furniture and Materials",Provisions.,,03/11/2023,01/12/2023,105.34,,Apetito Ltd
Adult Services,Community Care Team,Social Care and Health,Monmouth Adult Team,Employees,Direct Employee Expenses,Agency Staff,,20/10/2023,08/11/2023,1274.79,,Hoop
Adult Services,Community Care Team,Social Care and Health,Monmouth Adult Team,Employees,Direct Employee Expenses,Agency Staff,,20/10/2023,08/11/2023,1232.56,,Hoop
Adult Services,Community Care Team,Social Care and Health,Monmouth Adult Team,Employees,Direct Employee Expenses,Agency Staff,,20/10/2023,08/11/2023,1432.46,,Hoop
Adult Services,Community Care Team,Social Care and Health,Monmouth Adult Team,Employees,Direct Employee Expenses,Agency Staff,,20/10/2023,08/11/2023,1263.99,,Hoop
Adult Services,Community Care Team,Social Care and Health,Monmouth Adult Team,Employees,Direct Employee Expenses,Agency Staff,,20/10/2023,08/11/2023,923.97,,Hoop
Children Services,Children Services Teams,Social Care and Health,Family Support and Protection Team � North,Employees,Direct Employee Expenses,Agency Staff,,23/10/2023,09/11/2023,1694.23,,Leaders In Care
Children Services,Children Services Teams,Social Care and Health,Going Home Staying Home Team,Employees,Direct Employee Expenses,Agency Staff,,27/10/2023,06/11/2023,602,,Hoop
Children Services,Children Services Teams,Social Care and Health,Going Home Staying Home Team,Employees,Direct Employee Expenses,Agency Staff,,13/10/2023,06/11/2023,1290,,Hoop
Children Services,Children Services Teams,Social Care and Health,Long Term Support Team,Employees,Direct Employee Expenses,Agency Staff,,31/10/2023,06/11/2023,834.72,,NonStop Recruitment Ltd.
Adult Services,Community Care Team,Social Care and Health,Monmouth Adult Team,Employees,Direct Employee Expenses,Agency Staff,,20/10/2023,08/11/2023,1267.14,,Hoop
Adult Services,Community Care Team,Social Care and Health,Monmouth Adult Team,Employees,Direct Employee Expenses,Agency Staff,,22/09/2023,08/11/2023,1424.36,,Hoop
Adult Services,Community Care Team,Social Care and Health,Monmouth Adult Team,Employees,Direct Employee Expenses,Agency Staff,,18/10/2023,08/11/2023,1055.96,,Piers Meadows Recruitment Limited
Adult Services,Direct Care Residential,Social Care and Health,Severn View Residential,Employees,Direct Employee Expenses,Agency Staff,,15/11/2023,24/11/2023,169.2,,Support Ethics Ltd
Adult Services,Direct Care Residential,Social Care and Health,Severn View Residential,Employees,Direct Employee Expenses,Agency Staff,,15/11/2023,24/11/2023,493.5,,Support Ethics Ltd
Adult Services,Direct Care Residential,Social Care and Health,Severn View Residential,Employees,Direct Employee Expenses,Agency Staff,,15/11/2023,24/11/2023,191.88,,Support Ethics Ltd
Adult Services,Direct Care Residential,Social Care and Health,Severn View Residential,Employees,Direct Employee Expenses,Agency Staff,,25/10/2023,09/11/2023,141,,Support Ethics Ltd
Adult Services,Direct Care Residential,Social Care and Health,Severn View Residential,Employees,Direct Employee Expenses,Agency Staff,,25/10/2023,09/11/2023,159.9,,Support Ethics Ltd
Adult Services,Direct Care Residential,Social Care and Health,Severn View Residential,Employees,Direct Employee Expenses,Agency Staff,,25/10/2023,09/11/2023,159.9,,Support Ethics Ltd
Adult Services,Direct Care Residential,Social Care and Health,Severn View Residential,Employees,Direct Employee Expenses,Agency Staff,,25/10/2023,09/11/2023,169.2,,Support Ethics Ltd
Adult Services,Direct Care Residential,Social Care and Health,Severn View Residential,Employees,Direct Employee Expenses,Agency Staff,,25/10/2023,09/11/2023,329,,Support Ethics Ltd
Schools Total,School Group 7 � Pupil Capacity 501-1800,MCC Schools,King Henry 3-19 School,Employees,Indirect Employee Expenses,Replacement,,31/10/2023,20/11/2023,207.67,,Prospero Teaching
Children Services,Children Services Teams,Social Care and Health,Long Term Support Team,Employees,Direct Employee Expenses,Agency Staff,,15/11/2023,24/11/2023,1628,,Liquid Personnel
Adult Services,Community Care Team,Social Care and Health,Monnow Vale,Employees,Direct Employee Expenses,Agency Staff,,23/11/2023,28/11/2023,10237.47,,Aneurin Bevan Local Health Board
Children Services,Children Services Teams,Social Care and Health,Family Support and Protection Team � North,Employees,Direct Employee Expenses,Agency Staff,,01/11/2023,09/11/2023,1812.76,,Liquid Personnel
Children Services,Children Services Teams,Social Care and Health,Long Term Support Team,Employees,Direct Employee Expenses,Agency Staff,,21/11/2023,24/11/2023,834.72,,NonStop Recruitment Ltd.
Children Services,Children Services Teams,Social Care and Health,Long Term Support Team,Employees,Direct Employee Expenses,Agency Staff,,21/11/2023,24/11/2023,924.96,,NonStop Recruitment Ltd.
Adult Services,Community Care Team,Social Care and Health,Monmouth Adult Team,Employees,Direct Employee Expenses,Agency Staff,,15/09/2023,14/11/2023,1274.34,,Hoop
Adult Services,Community Care Team,Social Care and Health,Monmouth Adult Team,Employees,Direct Employee Expenses,Agency Staff,,06/10/2023,14/11/2023,1263.54,,Hoop
Adult Services,Community Care Team,Social Care and Health,Monmouth Adult Team,Employees,Direct Employee Expenses,Agency Staff,,06/10/2023,14/11/2023,1266.24,,Hoop
Children Services,Children Services Teams,Social Care and Health,Family Support and Protection Team � North,Employees,Direct Employee Expenses,Agency Staff,,15/11/2023,22/11/2023,1789.25,,Leaders In Care
Children Services,Children Services Teams,Social Care and Health,Family Support and Protection Team � North,Employees,Direct Employee Expenses,Agency Staff,,15/11/2023,22/11/2023,705,,Liquid Personnel
Adult Services,Direct Care Residential,Social Care and Health,Severn View Residential,Employees,Direct Employee Expenses,Agency Staff,,15/11/2023,22/11/2023,394.42,,Support Ethics Ltd
Adult Services,Direct Care Residential,Social Care and Health,Severn View Residential,Employees,Direct Employee Expenses,Agency Staff,,15/11/2023,22/11/2023,298.48,,Support Ethics Ltd
Children Services,Children Services Teams,Social Care and Health,Long Term Support Team,Employees,Direct Employee Expenses,Agency Staff,,31/10/2023,02/11/2023,270,,The Rainbow Tree Wales
"Enterprise, Housing & Community Animation",General Fund Housing,Communities & Place,Melin PSL (Private Sector Leasing),Premises,"Repairs, Alterations & Maintenance of Buildings",Building Improvements / Maintenance,,12/09/2023,03/11/2023,-560,,Highmore Facilities Ltd
"Enterprise, Housing & Community Animation",General Fund Housing,Communities & Place,Melin PSL (Private Sector Leasing),Premises,"Repairs, Alterations & Maintenance of Buildings",Building Improvements / Maintenance,,26/09/2023,03/11/2023,4450,,Highmore Facilities Ltd
"Enterprise, Housing & Community Animation",General Fund Housing,Communities & Place,Melin PSL (Private Sector Leasing),Premises,"Repairs, Alterations & Maintenance of Buildings",Building Improvements / Maintenance,,26/09/2023,03/11/2023,625,,Highmore Facilities Ltd
"Enterprise, Housing & Community Animation",General Fund Housing,Communities & Place,Melin PSL (Private Sector Leasing),Premises,"Repairs, Alterations & Maintenance of Buildings",Building Improvements / Maintenance,,26/09/2023,03/11/2023,-625,,Highmore Facilities Ltd
Schools Total,School Group 7 � Pupil Capacity 501-1800,MCC Schools,Monmouth Comprehensive,Premises,"Repairs, Alterations & Maintenance of Buildings",Building Improvements / Maintenance,,19/10/2023,06/11/2023,1018.5,,Roperhurst Ltd
"Enterprise, Housing & Community Animation",General Fund Housing,Communities & Place,Melin PSL (Private Sector Leasing),Premises,"Repairs, Alterations & Maintenance of Buildings",Building Improvements / Maintenance,,11/10/2023,03/11/2023,150,,Highmore Facilities Ltd
"Enterprise, Housing & Community Animation",General Fund Housing,Communities & Place,Melin PSL (Private Sector Leasing),Premises,"Repairs, Alterations & Maintenance of Buildings",Building Improvements / Maintenance,,11/10/2023,03/11/2023,195,,Highmore Facilities Ltd
"Enterprise, Housing & Community Animation",General Fund Housing,Communities & Place,Melin PSL (Private Sector Leasing),Premises,"Repairs, Alterations & Maintenance of Buildings",Building Improvements / Maintenance,,11/10/2023,03/11/2023,275,,Highmore Facilities Ltd
"Enterprise, Housing & Community Animation",General Fund Housing,Communities & Place,Melin PSL (Private Sector Leasing),Premises,"Repairs, Alterations & Maintenance of Buildings",Building Improvements / Maintenance,,11/10/2023,03/11/2023,9875,,Highmore Facilities Ltd
"Enterprise, Housing & Community Animation",General Fund Housing,Communities & Place,Melin PSL (Private Sector Leasing),Premises,"Repairs, Alterations & Maintenance of Buildings",Building Improvements / Maintenance,,11/10/2023,03/11/2023,751,,Highmore Facilities Ltd
"Enterprise, Housing & Community Animation",General Fund Housing,Communities & Place,Melin PSL (Private Sector Leasing),Premises,"Repairs, Alterations & Maintenance of Buildings",Building Improvements / Maintenance,,11/10/2023,03/11/2023,-751,,Highmore Facilities Ltd
"Enterprise, Housing & Community Animation",General Fund Housing,Communities & Place,Melin PSL (Private Sector Leasing),Premises,"Repairs, Alterations & Maintenance of Buildings",Building Improvements / Maintenance,,13/10/2023,03/11/2023,135,,Highmore Facilities Ltd
"Enterprise, Housing & Community Animation",General Fund Housing,Communities & Place,Monmouthshire Letting Service,Premises,"Repairs, Alterations & Maintenance of Buildings",Building Improvements / Maintenance,,13/10/2023,03/11/2023,150,,Highmore Facilities Ltd
"Facilities, Fleet & Decarbonisation",De-Carbonisation,Communities & Place,Sustainability,Premises,"Repairs, Alterations & Maintenance of Buildings",Building Improvements / Maintenance,,31/10/2023,06/11/2023,1800,,TEAM (Energy Auditing Agency Ltd)
"Enterprise, Housing & Community Animation",General Fund Housing,Communities & Place,Melin PSL (Private Sector Leasing),Premises,"Repairs, Alterations & Maintenance of Buildings",Building Improvements / Maintenance,,07/11/2023,24/11/2023,150,,Highmore Facilities Ltd
"Enterprise, Housing & Community Animation",General Fund Housing,Communities & Place,Lodgings Scheme,Premises,"Repairs, Alterations & Maintenance of Buildings",Building Improvements / Maintenance,,23/10/2023,24/11/2023,25,,REDACTED PERSONAL DATA
"Enterprise, Housing & Community Animation",General Fund Housing,Communities & Place,Lodgings Scheme,Premises,"Repairs, Alterations & Maintenance of Buildings",Building Improvements / Maintenance,,23/10/2023,24/11/2023,60,,REDACTED PERSONAL DATA
"Enterprise, Housing & Community Animation",General Fund Housing,Communities & Place,Lodgings Scheme,Premises,"Repairs, Alterations & Maintenance of Buildings",Building Improvements / Maintenance,,30/10/2023,24/11/2023,156,,REDACTED PERSONAL DATA
"Enterprise, Housing & Community Animation",General Fund Housing,Communities & Place,Lodgings Scheme,Premises,"Repairs, Alterations & Maintenance of Buildings",Building Improvements / Maintenance,,23/10/2023,24/11/2023,40,,REDACTED PERSONAL DATA
"Enterprise, Housing & Community Animation",General Fund Housing,Communities & Place,Melin PSL (Private Sector Leasing),Premises,"Repairs, Alterations & Maintenance of Buildings",Building Improvements / Maintenance,,14/11/2023,01/12/2023,45.08,,Monmouthshire Housing Association Ltd
"Enterprise, Housing & Community Animation",General Fund Housing,Communities & Place,Melin PSL (Private Sector Leasing),Premises,"Repairs, Alterations & Maintenance of Buildings",Building Improvements / Maintenance,,14/11/2023,01/12/2023,96.39,,Monmouthshire Housing Association Ltd
"Enterprise, Housing & Community Animation",General Fund Housing,Communities & Place,Melin PSL (Private Sector Leasing),Premises,"Repairs, Alterations & Maintenance of Buildings",Building Improvements / Maintenance,,14/11/2023,01/12/2023,96.39,,Monmouthshire Housing Association Ltd
"Enterprise, Housing & Community Animation",General Fund Housing,Communities & Place,Melin PSL (Private Sector Leasing),Premises,"Repairs, Alterations & Maintenance of Buildings",Building Improvements / Maintenance,,14/11/2023,01/12/2023,96.39,,Monmouthshire Housing Association Ltd
"Enterprise, Housing & Community Animation",General Fund Housing,Communities & Place,Emergency Accommodation Hostel,Premises,"Repairs, Alterations & Maintenance of Buildings",Building Improvements / Maintenance,,14/11/2023,01/12/2023,96.39,,Monmouthshire Housing Association Ltd
"Enterprise, Housing & Community Animation",General Fund Housing,Communities & Place,Melin PSL (Private Sector Leasing),Premises,"Repairs, Alterations & Maintenance of Buildings",Building Improvements / Maintenance,,14/11/2023,01/12/2023,96.39,,Monmouthshire Housing Association Ltd
"Enterprise, Housing & Community Animation",General Fund Housing,Communities & Place,Melin PSL (Private Sector Leasing),Premises,"Repairs, Alterations & Maintenance of Buildings",Building Improvements / Maintenance,,14/11/2023,01/12/2023,96.39,,Monmouthshire Housing Association Ltd
"Enterprise, Housing & Community Animation",General Fund Housing,Communities & Place,Melin PSL (Private Sector Leasing),Premises,"Repairs, Alterations & Maintenance of Buildings",Building Improvements / Maintenance,,14/11/2023,01/12/2023,25,,Monmouthshire Housing Association Ltd
"Enterprise, Housing & Community Animation",General Fund Housing,Communities & Place,Melin PSL (Private Sector Leasing),Premises,"Repairs, Alterations & Maintenance of Buildings",Building Improvements / Maintenance,,14/11/2023,01/12/2023,96.39,,Monmouthshire Housing Association Ltd
"Enterprise, Housing & Community Animation",General Fund Housing,Communities & Place,Melin PSL (Private Sector Leasing),Premises,"Repairs, Alterations & Maintenance of Buildings",Building Improvements / Maintenance,,14/11/2023,01/12/2023,96.39,,Monmouthshire Housing Association Ltd
"Enterprise, Housing & Community Animation",General Fund Housing,Communities & Place,Melin PSL (Private Sector Leasing),Premises,"Repairs, Alterations & Maintenance of Buildings",Building Improvements / Maintenance,,14/11/2023,01/12/2023,25,,Monmouthshire Housing Association Ltd
"Commercial, Corporate & landlord Services",Property Services & Facilities Management,Resources,Programmed Maintenance,Premises,"Repairs, Alterations & Maintenance of Buildings",Premises Repairs And Maintenance,,19/09/2023,24/11/2023,154.78,,Fire Safety Direct
"Commercial, Corporate & landlord Services",Property Services & Facilities Management,Resources,Programmed Maintenance,Premises,"Repairs, Alterations & Maintenance of Buildings",Premises Repairs And Maintenance,,19/09/2023,24/11/2023,70.22,,Fire Safety Direct
"Commercial, Corporate & landlord Services",Property Services & Facilities Management,Resources,Programmed Maintenance,Premises,"Repairs, Alterations & Maintenance of Buildings",Premises Repairs And Maintenance,,19/09/2023,24/11/2023,135.14,,Fire Safety Direct
"Commercial, Corporate & landlord Services",Property Services & Facilities Management,Resources,Programmed Maintenance,Premises,"Repairs, Alterations & Maintenance of Buildings",Premises Repairs And Maintenance,,21/09/2023,24/11/2023,157.54,,Fire Safety Direct
Schools Total,School Group 1 � Pupil Capacity 1-143,MCC Schools,Llanvihangel Crucorney Primary School,Premises,Energy Costs,Electricity.,,31/10/2023,30/11/2023,819.85,,EDF Energy
"Commercial, Corporate & landlord Services",Property Services & Facilities Management,Resources,Programmed Maintenance,Premises,"Repairs, Alterations & Maintenance of Buildings",Premises Repairs And Maintenance,,27/09/2023,24/11/2023,235,,Enviroteq
Schools Total,School Group 7 � Pupil Capacity 501-1800,MCC Schools,Caldicot School,Supplies & Services,"Equipment, Furniture and Materials",Materials & Consumables.,,04/11/2023,08/11/2023,18.4,,Yorkshire Purchasing
Schools Total,School Group 7 � Pupil Capacity 501-1800,MCC Schools,Caldicot School,Supplies & Services,"Equipment, Furniture and Materials",Materials & Consumables.,,04/11/2023,08/11/2023,23,,Yorkshire Purchasing
"Commercial, Corporate & landlord Services",Property Services & Facilities Management,Resources,Programmed Maintenance,Premises,"Repairs, Alterations & Maintenance of Buildings",Premises Repairs And Maintenance,,21/09/2023,08/11/2023,2.76,,Fire Safety Direct
Schools Total,School Group 2 � Pupil Capacity 144-314,MCC Schools,Llantilio Pertholey CiW Primary School (VC),Supplies & Services,"Equipment, Furniture and Materials",Materials & Consumables.,,24/10/2023,09/11/2023,5.32,,Amazon Payments UK Limited
Adult Services,Community Care Team,Social Care and Health,Chepstow Adult Team,Third Party Payments,Third Party,Personal Care.,,19/09/2023,09/11/2023,2050.94,,Radis Community Care
Adult Services,Community Care Team,Social Care and Health,Chepstow Adult Team,Third Party Payments,Third Party,Personal Care.,,31/10/2023,09/11/2023,-367.58,,Radis Community Care
Adult Services,Community Care Team,Social Care and Health,Chepstow Adult Team,Third Party Payments,Third Party,Personal Care.,,19/09/2023,09/11/2023,809.19,,Radis Community Care
Adult Services,Community Care Team,Social Care and Health,Chepstow Adult Team,Third Party Payments,Third Party,Personal Care.,,31/10/2023,09/11/2023,-161.83,,Radis Community Care
"Commercial, Corporate & landlord Services",Property Services & Facilities Management,Resources,Programmed Maintenance,Premises,"Repairs, Alterations & Maintenance of Buildings",Premises Repairs And Maintenance,,02/11/2023,08/11/2023,462.5,,Ambassador Fire & Security LTD
Schools Total,School Group 2 � Pupil Capacity 144-314,MCC Schools,Llantilio Pertholey CiW Primary School (VC),Premises,Ground Maintenance Costs,Grounds Maintenance - Direct.,,24/10/2023,09/11/2023,312.5,,Morris's Grounds Maintenance Ltd
Schools Total,School Group 2 � Pupil Capacity 144-314,MCC Schools,Llantilio Pertholey CiW Primary School (VC),Supplies & Services,"Equipment, Furniture and Materials",Materials & Consumables.,,24/10/2023,09/11/2023,9.36,,Amazon Payments UK Limited
Schools Total,School Group 2 � Pupil Capacity 144-314,MCC Schools,Llantilio Pertholey CiW Primary School (VC),Supplies & Services,"Equipment, Furniture and Materials",Materials & Consumables.,,24/10/2023,09/11/2023,15.31,,Amazon Payments UK Limited
Capital Division,Capital Dept,Capital,Capital Programme,Premises,Energy Costs,Electricity.,,01/11/2023,30/11/2023,776.79,,EDF Energy
Schools Total,School Group 7 � Pupil Capacity 501-1800,MCC Schools,Chepstow School,Premises,Energy Costs,Electricity.,,01/11/2023,30/11/2023,10565.06,,EDF Energy
Schools Total,School Group 7 � Pupil Capacity 501-1800,MCC Schools,Monmouth Comprehensive,Premises,Energy Costs,Electricity.,,01/11/2023,30/11/2023,1797.5,,EDF Energy
"Enterprise, Housing & Community Animation",General Fund Housing,Communities & Place,Homelessness,Premises,"Repairs, Alterations & Maintenance of Buildings",Security Of Premises.,,21/11/2023,01/12/2023,5819.52,,M J Events Support Ltd
"Enterprise, Housing & Community Animation",General Fund Housing,Communities & Place,Homelessness,Premises,"Repairs, Alterations & Maintenance of Buildings",Security Of Premises.,,21/11/2023,01/12/2023,4000.92,,M J Events Support Ltd
Schools Total,School Group 2 � Pupil Capacity 144-314,MCC Schools,Goytre Fawr Primary School,Supplies & Services,"Equipment, Furniture and Materials",Materials & Consumables.,,24/11/2023,29/11/2023,102.5,,First Tunnels
Schools Total,School Group 2 � Pupil Capacity 144-314,MCC Schools,Llantilio Pertholey CiW Primary School (VC),Supplies & Services,"Equipment, Furniture and Materials",Materials & Consumables.,,25/10/2023,09/11/2023,19.16,,Amazon Payments UK Limited
Schools Total,School Group 2 � Pupil Capacity 144-314,MCC Schools,Llantilio Pertholey CiW Primary School (VC),Supplies & Services,"Equipment, Furniture and Materials",Materials & Consumables.,,25/10/2023,09/11/2023,4.99,,Amazon Payments UK Limited
Schools Total,School Group 2 � Pupil Capacity 144-314,MCC Schools,Goytre Fawr Primary School,Premises,Energy Costs,Electricity.,,31/10/2023,30/11/2023,1556.26,,EDF Energy
Schools Total,School Group 2 � Pupil Capacity 144-314,MCC Schools,Llantilio Pertholey CiW Primary School (VC),Supplies & Services,"Equipment, Furniture and Materials",Materials & Consumables.,,16/11/2023,20/11/2023,15.16,,Amazon Payments UK Limited
Schools Total,School Group 2 � Pupil Capacity 144-314,MCC Schools,Llantilio Pertholey CiW Primary School (VC),Supplies & Services,"Equipment, Furniture and Materials",Materials & Consumables.,,16/11/2023,20/11/2023,13.64,,Amazon Payments UK Limited
Schools Total,School Group 2 � Pupil Capacity 144-314,MCC Schools,Llantilio Pertholey CiW Primary School (VC),Supplies & Services,"Equipment, Furniture and Materials",Materials & Consumables.,,16/11/2023,20/11/2023,13.49,,Amazon Payments UK Limited
Schools Total,School Group 2 � Pupil Capacity 144-314,MCC Schools,Llantilio Pertholey CiW Primary School (VC),Supplies & Services,"Equipment, Furniture and Materials",Materials & Consumables.,,16/11/2023,20/11/2023,48.32,,Amazon Payments UK Limited
Schools Total,School Group 7 � Pupil Capacity 501-1800,MCC Schools,Chepstow School,Premises,Energy Costs,Electricity.,,31/10/2023,30/11/2023,54.34,,EDF Energy
Schools Total,School Group 2 � Pupil Capacity 144-314,MCC Schools,Goytre Fawr Primary School,Supplies & Services,"Equipment, Furniture and Materials",Materials & Consumables.,,10/11/2023,20/11/2023,276,,Scholastic Ltd
Schools Total,School Group 2 � Pupil Capacity 144-314,MCC Schools,Llantilio Pertholey CiW Primary School (VC),Supplies & Services,"Equipment, Furniture and Materials",Materials & Consumables.,,16/11/2023,20/11/2023,25.16,,Amazon Payments UK Limited
Schools Total,School Group 2 � Pupil Capacity 144-314,MCC Schools,Llantilio Pertholey CiW Primary School (VC),Supplies & Services,"Equipment, Furniture and Materials",Materials & Consumables.,,16/11/2023,20/11/2023,14.24,,Amazon Payments UK Limited
Schools Total,School Group 7 � Pupil Capacity 501-1800,MCC Schools,Caldicot School,Supplies & Services,"Equipment, Furniture and Materials",Materials & Consumables.,,19/10/2023,20/11/2023,11.24,,Amazon Payments UK Limited
"Commercial, Corporate & landlord Services",Property Services & Facilities Management,Resources,Programmed Maintenance,Premises,"Repairs, Alterations & Maintenance of Buildings",Premises Repairs And Maintenance,,02/11/2023,06/11/2023,80,,Ambassador Fire & Security LTD
"Commercial, Corporate & landlord Services",Property Services & Facilities Management,Resources,Programmed Maintenance,Premises,"Repairs, Alterations & Maintenance of Buildings",Premises Repairs And Maintenance,,02/11/2023,06/11/2023,80,,Ambassador Fire & Security LTD
"Commercial, Corporate & landlord Services",Property Services & Facilities Management,Resources,Programmed Maintenance,Premises,"Repairs, Alterations & Maintenance of Buildings",Premises Repairs And Maintenance,,02/11/2023,06/11/2023,80,,Ambassador Fire & Security LTD
"Commercial, Corporate & landlord Services",Property Services & Facilities Management,Resources,Programmed Maintenance,Premises,"Repairs, Alterations & Maintenance of Buildings",Premises Repairs And Maintenance,,02/11/2023,06/11/2023,80,,Ambassador Fire & Security LTD
"Commercial, Corporate & landlord Services",Property Services & Facilities Management,Resources,Programmed Maintenance,Premises,"Repairs, Alterations & Maintenance of Buildings",Premises Repairs And Maintenance,,02/11/2023,06/11/2023,80,,Ambassador Fire & Security LTD
"Commercial, Corporate & landlord Services",Property Services & Facilities Management,Resources,Programmed Maintenance,Premises,"Repairs, Alterations & Maintenance of Buildings",Premises Repairs And Maintenance,,02/11/2023,06/11/2023,462.5,,Ambassador Fire & Security LTD
"Commercial, Corporate & landlord Services",Property Services & Facilities Management,Resources,Programmed Maintenance,Premises,"Repairs, Alterations & Maintenance of Buildings",Premises Repairs And Maintenance,,02/11/2023,06/11/2023,462.5,,Ambassador Fire & Security LTD
"Commercial, Corporate & landlord Services",Property Services & Facilities Management,Resources,Programmed Maintenance,Premises,"Repairs, Alterations & Maintenance of Buildings",Premises Repairs And Maintenance,,02/11/2023,06/11/2023,462.5,,Ambassador Fire & Security LTD
"Commercial, Corporate & landlord Services",Property Services & Facilities Management,Resources,Programmed Maintenance,Premises,"Repairs, Alterations & Maintenance of Buildings",Premises Repairs And Maintenance,,02/11/2023,06/11/2023,462.5,,Ambassador Fire & Security LTD
"Commercial, Corporate & landlord Services",Property Services & Facilities Management,Resources,Programmed Maintenance,Premises,"Repairs, Alterations & Maintenance of Buildings",Premises Repairs And Maintenance,,02/11/2023,06/11/2023,462.5,,Ambassador Fire & Security LTD
"Commercial, Corporate & landlord Services",Property Services & Facilities Management,Resources,Programmed Maintenance,Premises,"Repairs, Alterations & Maintenance of Buildings",Premises Repairs And Maintenance,,02/11/2023,06/11/2023,462.5,,Ambassador Fire & Security LTD
"Commercial, Corporate & landlord Services",Property Services & Facilities Management,Resources,Programmed Maintenance,Premises,"Repairs, Alterations & Maintenance of Buildings",Premises Repairs And Maintenance,,02/11/2023,06/11/2023,462.5,,Ambassador Fire & Security LTD
"Commercial, Corporate & landlord Services",Property Services & Facilities Management,Resources,Programmed Maintenance,Premises,"Repairs, Alterations & Maintenance of Buildings",Premises Repairs And Maintenance,,02/11/2023,06/11/2023,462.5,,Ambassador Fire & Security LTD
"Commercial, Corporate & landlord Services",Property Services & Facilities Management,Resources,Programmed Maintenance,Premises,"Repairs, Alterations & Maintenance of Buildings",Premises Repairs And Maintenance,,02/11/2023,06/11/2023,462.5,,Ambassador Fire & Security LTD
"Commercial, Corporate & landlord Services",Property Services & Facilities Management,Resources,Programmed Maintenance,Premises,"Repairs, Alterations & Maintenance of Buildings",Premises Repairs And Maintenance,,02/11/2023,06/11/2023,462.5,,Ambassador Fire & Security LTD
"Leisure, Youth & Outdoor Adventure",Leisure Services,MonLife Directorate,Caldicot Leisure Centre,Premises,"Repairs, Alterations & Maintenance of Buildings",Security Maintenance.,,01/11/2023,06/11/2023,572,,Tod Security Systems Ltd
Capital Division,Capital Dept,Capital,Capital Programme,Premises,Energy Costs,Electricity.,,27/10/2023,30/11/2023,601.13,,EDF Energy
Adult Services,Community Care Team,Social Care and Health,Chepstow Adult Team,Third Party Payments,Third Party,Personal Care.,,30/10/2023,02/11/2023,684,,Lougher Home Care Ltd
Adult Services,Community Care Team,Social Care and Health,Chepstow Adult Team,Third Party Payments,Third Party,Personal Care.,,30/10/2023,02/11/2023,684,,Lougher Home Care Ltd
Adult Services,Community Care Team,Social Care and Health,Chepstow Adult Team,Third Party Payments,Third Party,Personal Care.,,30/10/2023,02/11/2023,513,,Lougher Home Care Ltd
Adult Services,Community Care Team,Social Care and Health,Chepstow Adult Team,Third Party Payments,Third Party,Personal Care.,,30/10/2023,02/11/2023,4149.6,,Lougher Home Care Ltd
Adult Services,Community Care Team,Social Care and Health,Chepstow Adult Team,Third Party Payments,Third Party,Personal Care.,,30/10/2023,02/11/2023,2097.6,,Lougher Home Care Ltd
Adult Services,Community Care Team,Social Care and Health,Chepstow Adult Team,Third Party Payments,Third Party,Personal Care.,,30/10/2023,02/11/2023,461.7,,Lougher Home Care Ltd
Adult Services,Community Care Team,Social Care and Health,Chepstow Adult Team,Third Party Payments,Third Party,Personal Care.,,30/10/2023,02/11/2023,370.5,,Lougher Home Care Ltd
Adult Services,Community Care Team,Social Care and Health,Chepstow Adult Team,Third Party Payments,Third Party,Personal Care.,,30/10/2023,02/11/2023,1071.6,,Lougher Home Care Ltd
Adult Services,Community Care Team,Social Care and Health,Chepstow Adult Team,Third Party Payments,Third Party,Personal Care.,,30/10/2023,02/11/2023,507.3,,Lougher Home Care Ltd
Adult Services,Community Care Team,Social Care and Health,Chepstow Adult Team,Third Party Payments,Third Party,Personal Care.,,30/10/2023,02/11/2023,4149.6,,Lougher Home Care Ltd
Adult Services,Community Care Team,Social Care and Health,Chepstow Adult Team,Third Party Payments,Third Party,Personal Care.,,30/10/2023,02/11/2023,957.6,,Lougher Home Care Ltd
"Placemaking, Highways & Flooding",Planning Policy,Communities & Place,Planning Policy,Supplies & Services,Services,Professional And Specialist Fees,,31/10/2023,24/11/2023,3560,,Burrows-Hutchinson Ltd
"Placemaking, Highways & Flooding",Highways Dev & Car Parks,Communities & Place,Traffic & Road Safety,Supplies & Services,Services,Professional And Specialist Fees,,31/10/2023,01/12/2023,1600,,WSP (Real Estate & Infrastructure) Ltd
Schools Total,School Group 2 � Pupil Capacity 144-314,MCC Schools,Usk CiW Primary School (VC),Supplies & Services,Services,Professional And Specialist Fees,,16/10/2023,01/12/2023,1875,,Helen Bowen Education Consultancy Ltd
Schools Total,School Group 2 � Pupil Capacity 144-314,MCC Schools,Usk CiW Primary School (VC),Supplies & Services,Services,Professional And Specialist Fees,,22/06/2023,01/12/2023,175,,Helen Bowen Education Consultancy Ltd
Children Services,Children Services Teams,Social Care and Health,Long Term Support Team,Supplies & Services,Services,Professional And Specialist Fees,,11/10/2023,01/11/2023,12960,,Midway Transitional Solutions Ltd
Children Services,Children Services Teams,Social Care and Health,Long Term Support Team,Supplies & Services,Services,Professional And Specialist Fees,,11/10/2023,01/11/2023,-1200,,Midway Transitional Solutions Ltd
Children Services,Children Services Teams,Social Care and Health,Long Term Support Team,Supplies & Services,Services,Professional And Specialist Fees,,11/10/2023,01/11/2023,1200,,Midway Transitional Solutions Ltd
Schools Total,School Group 2 � Pupil Capacity 144-314,MCC Schools,Usk CiW Primary School (VC),Supplies & Services,Services,Professional And Specialist Fees,,25/10/2023,06/11/2023,1200,,Two Beaters and a Box
Schools Total,School Group 2 � Pupil Capacity 144-314,MCC Schools,Usk CiW Primary School (VC),Supplies & Services,Services,Professional And Specialist Fees,,25/10/2023,06/11/2023,-1200,,Two Beaters and a Box
Schools Total,School Group 2 � Pupil Capacity 144-314,MCC Schools,Usk CiW Primary School (VC),Premises,Cleaning and Domestic Supplies,Premises Pest Control,,22/10/2023,06/11/2023,101,,P&P Pest Control
Children Services,Children Services Teams,Social Care and Health,Long Term Support Team,Supplies & Services,Services,Professional And Specialist Fees,,30/10/2023,06/11/2023,177.4,,ProHealthCare Limited
"Leisure, Youth & Outdoor Adventure",Sports Development,MonLife Directorate,Local Authority Partnership Agreement,Supplies & Services,Services,Professional And Specialist Fees,,25/10/2023,08/11/2023,798,,WELSH GYMNASTICS
Schools Total,School Group 2 � Pupil Capacity 144-314,MCC Schools,Our Lady & St Michael's (OLSM) RC Primary School (VA),Premises,Cleaning and Domestic Supplies,Toilet Requisites,,20/09/2023,08/11/2023,299.8,,H D Adcock (Nelson) Ltd
"Facilities, Fleet & Decarbonisation",Transport Department,Communities & Place,Transport,Transport,Contract Hire and Operating Leases,Vehicle Hire Charge,,31/10/2023,01/12/2023,686.34,,Runtech Ltd
"Facilities, Fleet & Decarbonisation",Transport Department,Communities & Place,Transport,Transport,Contract Hire and Operating Leases,Vehicle Hire Charge,,31/10/2023,01/12/2023,752.99,,Runtech Ltd
Public Protection,Public Protection,Social Care and Health,Public Health,Supplies & Services,Services,Professional And Specialist Fees,,15/11/2023,24/11/2023,187.2,,Gradko International Ltd
Public Protection,Public Protection,Social Care and Health,Public Health,Supplies & Services,Services,Professional And Specialist Fees,,15/11/2023,24/11/2023,5.25,,Gradko International Ltd
Schools Total,School Group 7 � Pupil Capacity 501-1800,MCC Schools,Caldicot School,Transport,Contract Hire and Operating Leases,Vehicle Hire Charge,,16/11/2023,29/11/2023,365.04,,Lex Autolease Ltd
Finance & Business Devlopment,Leisure Services,MonLife Directorate,Leisure Service Management,Supplies & Services,Services,Professional And Specialist Fees,,31/10/2023,23/11/2023,10.1,,Debit Finance Collections PLC t/as Legend
Schools Total,School Group 2 � Pupil Capacity 144-314,MCC Schools,Kymin View Primary School,Supplies & Services,Services,Professional And Specialist Fees,,20/11/2023,23/11/2023,750,,Lemmiout Activities
Schools Total,School Group 2 � Pupil Capacity 144-314,MCC Schools,Kymin View Primary School,Transport,Contract Hire and Operating Leases,Vehicle Hire Charge,,18/07/2023,20/11/2023,375,,REDACTED PERSONAL DATA
Schools Total,School Group 2 � Pupil Capacity 144-314,MCC Schools,Kymin View Primary School,Transport,Contract Hire and Operating Leases,Vehicle Hire Charge,,16/09/2023,20/11/2023,480,,REDACTED PERSONAL DATA
Schools Total,School Group 2 � Pupil Capacity 144-314,MCC Schools,Llanfoist Fawr Primary School,Premises,Cleaning and Domestic Supplies,Toilet Requisites,,15/11/2023,20/11/2023,35.52,,Newhall Janitorial Ltd
Schools Total,School Group 2 � Pupil Capacity 144-314,MCC Schools,Llanfoist Fawr Primary School,Premises,Cleaning and Domestic Supplies,Toilet Requisites,,15/11/2023,20/11/2023,69.12,,Newhall Janitorial Ltd
Schools Total,School Group 2 � Pupil Capacity 144-314,MCC Schools,Llanfoist Fawr Primary School,Premises,Cleaning and Domestic Supplies,Toilet Requisites,,15/11/2023,20/11/2023,45.6,,Newhall Janitorial Ltd
Countryside & Culture,Countryside,MonLife Directorate,Gwent Green Grid Partnership (Colette Bosley),Supplies & Services,Services,Professional And Specialist Fees,,17/11/2023,24/11/2023,4200,,Gwent Wildlife Trust
Countryside & Culture,Countryside,MonLife Directorate,Gwent Green Grid Partnership (Colette Bosley),Supplies & Services,Services,Professional And Specialist Fees,,17/11/2023,24/11/2023,792,,Gwent Wildlife Trust
"Facilities, Fleet & Decarbonisation",Transport Department,Communities & Place,Transport,Transport,Contract Hire and Operating Leases,Vehicle Hire Charge,,31/10/2023,09/11/2023,44702.56,,Days Rental
Neighbourhood Services,Highways,Communities & Place,Structures Maintenance,Supplies & Services,Services,Professional And Specialist Fees,,11/10/2023,09/11/2023,9430.12,,Allmarque PMS Ltd t/a Roman Road Marking
Public Protection,Public Protection,Social Care and Health,Animal Licensing Wales,Supplies & Services,Services,Professional And Specialist Fees,,08/11/2023,09/11/2023,950,,Trading Standards Institute
"Facilities, Fleet & Decarbonisation",Transport Department,Communities & Place,Transport,Transport,Contract Hire and Operating Leases,Vehicle Hire Charge,,09/10/2023,09/11/2023,1320,,Avondale Service Station
"Placemaking, Highways & Flooding",Highways Dev & Car Parks,Communities & Place,Highways Development,Supplies & Services,Services,Professional And Specialist Fees,,02/11/2023,09/11/2023,3041.42,,WSP UK Limited
Finance & Business Devlopment,Borough Theatre,MonLife Directorate,Borough Theatre General,Supplies & Services,"Equipment, Furniture and Materials",Promotions And Exhibitions,,15/11/2023,24/11/2023,1376.96,,Theatr na nog
Adult Services,Community Care Team,Social Care and Health,Mental Health Care Team,Third Party Payments,Third Party,Personal Care.,,27/11/2023,29/11/2023,414.96,,JSJ Supported Living Ltd
"Commercial, Corporate & landlord Services",Property Services & Facilities Management,Resources,Reactive Maintenance,Premises,"Repairs, Alterations & Maintenance of Buildings",Building Improvements / Maintenance,,12/10/2023,09/11/2023,92,,A.J Quinn Building Contractors Ltd
Adult Services,Direct Care Residential,Social Care and Health,Severn View Residential,Supplies & Services,"Equipment, Furniture and Materials",Provisions.,,26/10/2023,09/11/2023,610.41,,Castell Howell Foods Ltd
Adult Services,Direct Care Residential,Social Care and Health,Severn View Residential,Supplies & Services,"Equipment, Furniture and Materials",Provisions.,,26/10/2023,09/11/2023,-50.83,,Castell Howell Foods Ltd
Adult Services,Direct Care Residential,Social Care and Health,Severn View Residential,Supplies & Services,"Equipment, Furniture and Materials",Provisions.,,26/10/2023,09/11/2023,50.83,,Castell Howell Foods Ltd
Adult Services,Direct Care Residential,Social Care and Health,Mardy Park,Supplies & Services,"Equipment, Furniture and Materials",Cleaning Materials.,,17/11/2023,23/11/2023,351.6,,Newhall Janitorial Ltd
Democratic Services,Democratic Services,People & Governance,Electoral Management,Supplies & Services,Communications and Computing,Postages,,13/11/2023,28/11/2023,70,,Royal Mail
"Commercial, Corporate & landlord Services",Property Services & Facilities Management,Resources,Reactive Maintenance,Premises,"Repairs, Alterations & Maintenance of Buildings",Building Improvements / Maintenance,,16/10/2023,09/11/2023,133.1,,A.J Quinn Building Contractors Ltd
"Commercial, Corporate & landlord Services",Property Services & Facilities Management,Resources,Reactive Maintenance,Premises,"Repairs, Alterations & Maintenance of Buildings",Building Improvements / Maintenance,,18/10/2023,09/11/2023,89.69,,A.J Quinn Building Contractors Ltd
"Commercial, Corporate & landlord Services",Property Services & Facilities Management,Resources,Magor Accommodation,Premises,"Repairs, Alterations & Maintenance of Buildings",Building Improvements / Maintenance,,02/11/2023,09/11/2023,198.75,,MORGAN ENVIRONMENTAL LTD
"Commercial, Corporate & landlord Services",Property Services & Facilities Management,Resources,Usk Accommodation,Premises,"Repairs, Alterations & Maintenance of Buildings",Building Improvements / Maintenance,,02/11/2023,09/11/2023,184.16,,MORGAN ENVIRONMENTAL LTD
"Commercial, Corporate & landlord Services",Property Services & Facilities Management,Resources,Usk Accommodation,Premises,"Repairs, Alterations & Maintenance of Buildings",Building Improvements / Maintenance,,02/11/2023,09/11/2023,184.16,,MORGAN ENVIRONMENTAL LTD
Finance & Business Devlopment,Attractions,MonLife Directorate,Tourist Information Centres,Supplies & Services,Catering,Cafe,,31/10/2023,03/11/2023,39.72,,Castell Howell Foods Ltd
Finance & Business Devlopment,Attractions,MonLife Directorate,Tourist Information Centres,Supplies & Services,Catering,Cafe,,31/10/2023,03/11/2023,6.44,,Castell Howell Foods Ltd
Neighbourhood Services,Highways,Communities & Place,Resurfacing,Supplies & Services,"Equipment, Furniture and Materials",Display Equipment,,10/10/2023,06/11/2023,43.32,,Archway Products Ltd
Adult Services,Community Care Team,Social Care and Health,Mental Health Care Team,Third Party Payments,Third Party,Personal Care.,,27/11/2023,29/11/2023,642.72,,JSJ Supported Living Ltd
Adult Services,Direct Care,Social Care and Health,Monmouthshire Meals,Supplies & Services,"Equipment, Furniture and Materials",Provisions.,,27/10/2023,01/12/2023,98.89,,Apetito Ltd
Adult Services,Community Care Team,Social Care and Health,Abergavenny Adult Team,Third Party Payments,Third Party,Residential.,,18/07/2023,29/11/2023,2642.35,,Somerset Care
Adult Services,Community Care Team,Social Care and Health,Mental Health Care Team,Third Party Payments,Third Party,Personal Care.,,30/10/2023,02/11/2023,798,,Lougher Home Care Ltd
Adult Services,Community Care Team,Social Care and Health,Mental Health Care Team,Third Party Payments,Third Party,Personal Care.,,30/10/2023,02/11/2023,4149.6,,Lougher Home Care Ltd
Adult Services,Community Care Team,Social Care and Health,Mental Health Care Team,Third Party Payments,Third Party,Personal Care.,,30/10/2023,02/11/2023,1442.1,,Lougher Home Care Ltd
Adult Services,Community Care Team,Social Care and Health,Mental Health Care Team,Third Party Payments,Third Party,Personal Care.,,30/10/2023,02/11/2023,2074.8,,Lougher Home Care Ltd
Adult Services,Community Care Team,Social Care and Health,Mental Health Care Team,Third Party Payments,Third Party,Personal Care.,,30/10/2023,02/11/2023,1117.2,,Lougher Home Care Ltd
"Leisure, Youth & Outdoor Adventure",Leisure Services,MonLife Directorate,Monmouth Leisure Centre,Supplies & Services,"Equipment, Furniture and Materials",Cleaning Materials.,,31/10/2023,03/11/2023,52.59,,Newhall Janitorial Ltd
"Leisure, Youth & Outdoor Adventure",Leisure Services,MonLife Directorate,Monmouth Leisure Centre,Supplies & Services,"Equipment, Furniture and Materials",Cleaning Materials.,,31/10/2023,03/11/2023,72.64,,Newhall Janitorial Ltd
Finance & Business Devlopment,Attractions,MonLife Directorate,Old Station Tintern,Supplies & Services,Catering,Cafe,,01/11/2023,03/11/2023,37.7,,Castell Howell Foods Ltd
Finance & Business Devlopment,Attractions,MonLife Directorate,Old Station Tintern,Supplies & Services,Catering,Cafe,,01/11/2023,03/11/2023,107.15,,Castell Howell Foods Ltd
"Commercial, Corporate & landlord Services",Property Services & Facilities Management,Resources,Reactive Maintenance,Premises,"Repairs, Alterations & Maintenance of Buildings",Building Improvements / Maintenance,,15/08/2023,09/11/2023,260,,KRL Services
"Commercial, Corporate & landlord Services",Property Services & Facilities Management,Resources,Reactive Maintenance,Premises,"Repairs, Alterations & Maintenance of Buildings",Building Improvements / Maintenance,,15/08/2023,09/11/2023,180,,KRL Services
Adult Services,Community Care Team,Social Care and Health,Mental Health Care Team,Third Party Payments,Third Party,Personal Care.,,09/11/2023,20/11/2023,1627.44,,Q Care Ltd
Adult Services,Community Care Team,Social Care and Health,Mental Health Care Team,Third Party Payments,Third Party,Personal Care.,,09/11/2023,20/11/2023,1849.6,,Q Care Ltd
Adult Services,Community Care Team,Social Care and Health,Mental Health Care Team,Third Party Payments,Third Party,Personal Care.,,09/11/2023,20/11/2023,693.6,,Q Care Ltd
Neighbourhood Services,Highways,Communities & Place,Capital - Permanent Patching,Transport,Contract Hire and Operating Leases,Plant Hire Charge,,27/10/2023,24/11/2023,-158.33,,Connor Construction (South West) Ltd
Neighbourhood Services,Highways,Communities & Place,Capital - Permanent Patching,Transport,Contract Hire and Operating Leases,Plant Hire Charge,,27/10/2023,24/11/2023,-85,,Connor Construction (South West) Ltd
Neighbourhood Services,Highways,Communities & Place,Overhead - Mon Highways,Transport,Contract Hire and Operating Leases,Plant Hire Charge,,26/09/2023,08/11/2023,3190,,Drainforce Limited
Capital Division,Capital Dept,Capital,Capital Programme,Third Party Payments,Third Party,General Contracts,,23/10/2023,06/11/2023,22337,,MPS Maintenance Services Ltd
Adult Services,Direct Care,Social Care and Health,Care at Home,Transport,Contract Hire and Operating Leases,Vehicle Hire Charge,,31/10/2023,01/12/2023,686.34,,Runtech Ltd
Countryside & Culture,Countryside,MonLife Directorate,Countryside Access,Third Party Payments,Third Party,General Contracts,,10/10/2023,23/11/2023,283.25,,Thomas Waste Management Ltd
Neighbourhood Services,Waste and Street Services,Communities & Place,Refuse & Cleansing Operations,Third Party Payments,Third Party,General Contracts,,15/11/2023,28/11/2023,5951.13,,JPK Trade Supplies Ltd
People,People Services,People & Governance,Occupational Health,Employees,Indirect Employee Expenses,Staff Welfare,,30/09/2023,03/11/2023,6149.8,,INSIGHT WORKPLACE HEALTH
People,People Services,People & Governance,Occupational Health,Employees,Indirect Employee Expenses,Staff Welfare,,30/09/2023,03/11/2023,-119.8,,INSIGHT WORKPLACE HEALTH
People,People Services,People & Governance,Occupational Health,Employees,Indirect Employee Expenses,Staff Welfare,,30/09/2023,03/11/2023,119.8,,INSIGHT WORKPLACE HEALTH
Neighbourhood Services,Highways,Communities & Place,Resurfacing,Transport,Contract Hire and Operating Leases,Plant Hire Charge,,10/10/2023,06/11/2023,6136.48,,Archway Products Ltd
Neighbourhood Services,Waste and Street Services,Communities & Place,Refuse & Cleansing Operations,Third Party Payments,Third Party,General Contracts,,01/11/2023,03/11/2023,1070.42,,Blaenau Gwent County Borough Council
"Facilities, Fleet & Decarbonisation",Home to School Transport Dept,Communities & Place,SCH Transport,Transport,Contract Hire and Operating Leases,PTU Vehicle Contracts,,03/11/2023,14/11/2023,2580,,C and P Transport
Neighbourhood Services,Highways,Communities & Place,Capital - Permanent Patching,Transport,Contract Hire and Operating Leases,Plant Hire Charge,,30/09/2023,20/11/2023,630,,Clee Hill Plant Ltd
Neighbourhood Services,Highways,Communities & Place,Capital - Permanent Patching,Transport,Contract Hire and Operating Leases,Plant Hire Charge,,30/09/2023,20/11/2023,1275,,Clee Hill Plant Ltd
Neighbourhood Services,Highways,Communities & Place,Structures Maintenance,Transport,Contract Hire and Operating Leases,Plant Hire Charge,,01/11/2023,22/11/2023,8600.1,,A.L.D Plant Hire
Neighbourhood Services,Highways,Communities & Place,Drainage works,Transport,Contract Hire and Operating Leases,Plant Hire Charge,,02/10/2023,22/11/2023,6867,,A.L.D Plant Hire
"Placemaking, Highways & Flooding",Highways Dev & Car Parks,Communities & Place,Floods & SUDS,Third Party Payments,Third Party,General Contracts,,22/11/2023,30/11/2023,1380,,Jacobs UK Ltd
"Placemaking, Highways & Flooding",Highways Dev & Car Parks,Communities & Place,Floods & SUDS,Third Party Payments,Third Party,General Contracts,,11/10/2023,30/11/2023,3638.49,,JBA Consulting
Capital Division,Capital Dept,Capital,Capital Programme,Third Party Payments,Third Party,General Contracts,,22/11/2023,30/11/2023,7219,,WSP UK Limited
Capital Division,Capital Dept,Capital,Capital Programme,Third Party Payments,Third Party,General Contracts,,24/10/2023,30/11/2023,7433.81,,A.L.D Plant Hire
Capital Division,Capital Dept,Capital,Capital Programme,Third Party Payments,Third Party,General Contracts,,26/10/2023,30/11/2023,428,,A.L.D Plant Hire
"Placemaking, Highways & Flooding",Highways Dev & Car Parks,Communities & Place,Design & Commissioning,Third Party Payments,Third Party,General Contracts,,07/11/2023,01/12/2023,960,,Eco Vigour Ltd
Capital Division,Capital Dept,Capital,Capital Programme,Third Party Payments,Third Party,General Contracts,,26/10/2023,30/11/2023,7006.91,,WSP UK Limited
"Facilities, Fleet & Decarbonisation",Home to School Transport Dept,Communities & Place,School Transport � External,Transport,Contract Hire and Operating Leases,PTU Vehicle Contracts,,14/11/2023,15/11/2023,6615,,BAM Travel LTD
"Facilities, Fleet & Decarbonisation",Home to School Transport Dept,Communities & Place,School Transport � External,Transport,Contract Hire and Operating Leases,PTU Vehicle Contracts,,14/11/2023,15/11/2023,2520,,Celtic Connect
"Facilities, Fleet & Decarbonisation",Home to School Transport Dept,Communities & Place,School Transport � External,Transport,Contract Hire and Operating Leases,PTU Vehicle Contracts,,14/11/2023,15/11/2023,3244.5,,A & T Taxis
"Facilities, Fleet & Decarbonisation",Home to School Transport Dept,Communities & Place,School Transport � External,Transport,Contract Hire and Operating Leases,PTU Vehicle Contracts,,14/11/2023,15/11/2023,1558.33,,Abergavenny Taxis Ltd
"Facilities, Fleet & Decarbonisation",Home to School Transport Dept,Communities & Place,School Transport � External,Transport,Contract Hire and Operating Leases,PTU Vehicle Contracts,,14/11/2023,15/11/2023,2205,,REDACTED PERSONAL DATA
Adult Services,Community Care Team,Social Care and Health,Deprivation of Liberties (DOLS),Third Party Payments,Third Party,General Contracts,,#N/A,#N/A,-980.65,,Mental Health First Aid Wales Ltd
Neighbourhood Services,Highways,Communities & Place,Capital - Permanent Patching,Transport,Contract Hire and Operating Leases,Plant Hire Charge,,27/10/2023,14/11/2023,-90,,Connor Construction (South West) Ltd
Neighbourhood Services,Highways,Communities & Place,Overhead - Mon Highways,Transport,Contract Hire and Operating Leases,Plant Hire Charge,,16/10/2023,10/11/2023,2672,,Price Bros
Neighbourhood Services,Highways,Communities & Place,Overhead - Mon Highways,Transport,Contract Hire and Operating Leases,Plant Hire Charge,,16/10/2023,10/11/2023,965,,Price Bros
Adult Services,Community Care Team,Social Care and Health,Chepstow Adult Team,Third Party Payments,Third Party,Personal Care.,,30/10/2023,02/11/2023,2587.8,,Lougher Home Care Ltd
Adult Services,Community Care Team,Social Care and Health,Chepstow Adult Team,Third Party Payments,Third Party,Personal Care.,,30/10/2023,02/11/2023,798,,Lougher Home Care Ltd
Adult Services,Community Care Team,Social Care and Health,Chepstow Adult Team,Third Party Payments,Third Party,Personal Care.,,30/10/2023,02/11/2023,900.6,,Lougher Home Care Ltd
Adult Services,Community Care Team,Social Care and Health,Chepstow Adult Team,Third Party Payments,Third Party,Personal Care.,,30/10/2023,02/11/2023,2713.6,,Lougher Home Care Ltd
Adult Services,Community Care Team,Social Care and Health,Chepstow Adult Team,Third Party Payments,Third Party,Personal Care.,,30/10/2023,02/11/2023,3192,,Lougher Home Care Ltd
Adult Services,Community Care Team,Social Care and Health,Chepstow Adult Team,Third Party Payments,Third Party,Personal Care.,,30/10/2023,02/11/2023,1276.8,,Lougher Home Care Ltd
Adult Services,Community Care Team,Social Care and Health,Chepstow Adult Team,Third Party Payments,Third Party,Personal Care.,,30/10/2023,02/11/2023,798,,Lougher Home Care Ltd
Adult Services,Community Care Team,Social Care and Health,Chepstow Adult Team,Third Party Payments,Third Party,Personal Care.,,30/10/2023,02/11/2023,957.6,,Lougher Home Care Ltd
Adult Services,Community Care Team,Social Care and Health,Chepstow Adult Team,Third Party Payments,Third Party,Personal Care.,,30/10/2023,02/11/2023,1436.4,,Lougher Home Care Ltd
Adult Services,Community Care Team,Social Care and Health,Chepstow Adult Team,Third Party Payments,Third Party,Personal Care.,,30/10/2023,02/11/2023,786.6,,Lougher Home Care Ltd
Schools Total,School Group 2 � Pupil Capacity 144-314,MCC Schools,Llantilio Pertholey CiW Primary School (VC),Supplies & Services,"Equipment, Furniture and Materials",Materials & Consumables.,,16/11/2023,20/11/2023,14.24,,Amazon Payments UK Limited
Schools Total,School Group 2 � Pupil Capacity 144-314,MCC Schools,Llantilio Pertholey CiW Primary School (VC),Supplies & Services,"Equipment, Furniture and Materials",Materials & Consumables.,,16/11/2023,20/11/2023,65.68,,Amazon Payments UK Limited
Schools Total,School Group 2 � Pupil Capacity 144-314,MCC Schools,Llantilio Pertholey CiW Primary School (VC),Supplies & Services,"Equipment, Furniture and Materials",Materials & Consumables.,,16/11/2023,20/11/2023,13.34,,Amazon Payments UK Limited
Schools Total,School Group 2 � Pupil Capacity 144-314,MCC Schools,Llantilio Pertholey CiW Primary School (VC),Supplies & Services,"Equipment, Furniture and Materials",Materials & Consumables.,,16/11/2023,20/11/2023,12.98,,Amazon Payments UK Limited
Schools Total,School Group 2 � Pupil Capacity 144-314,MCC Schools,Llantilio Pertholey CiW Primary School (VC),Supplies & Services,"Equipment, Furniture and Materials",Materials & Consumables.,,16/11/2023,20/11/2023,7.49,,Amazon Payments UK Limited
Schools Total,School Group 7 � Pupil Capacity 501-1800,MCC Schools,Chepstow School,Supplies & Services,"Equipment, Furniture and Materials",Materials & Consumables.,,24/11/2023,28/11/2023,17.82,,Scientific Laboratory Supplies Ltd
Schools Total,School Group 7 � Pupil Capacity 501-1800,MCC Schools,Chepstow School,Supplies & Services,"Equipment, Furniture and Materials",Materials & Consumables.,,20/11/2023,28/11/2023,21.49,,Hope Education Ltd
Schools Total,School Group 7 � Pupil Capacity 501-1800,MCC Schools,Chepstow School,Supplies & Services,"Equipment, Furniture and Materials",Materials & Consumables.,,20/11/2023,28/11/2023,0.99,,Hope Education Ltd
Schools Total,School Group 7 � Pupil Capacity 501-1800,MCC Schools,Chepstow School,Supplies & Services,"Equipment, Furniture and Materials",Materials & Consumables.,,20/11/2023,28/11/2023,104.85,,Hope Education Ltd
Schools Total,School Group 7 � Pupil Capacity 501-1800,MCC Schools,Caldicot School,Supplies & Services,"Equipment, Furniture and Materials",Materials & Consumables.,,14/11/2023,28/11/2023,5.82,,Amazon Payments UK Limited
Schools Total,School Group 7 � Pupil Capacity 501-1800,MCC Schools,Caldicot School,Supplies & Services,"Equipment, Furniture and Materials",Materials & Consumables.,,15/11/2023,28/11/2023,19.1,,Amazon Payments UK Limited
Schools Total,School Group 7 � Pupil Capacity 501-1800,MCC Schools,Caldicot School,Supplies & Services,"Equipment, Furniture and Materials",Materials & Consumables.,,16/11/2023,28/11/2023,33.6,,Amazon Payments UK Limited
Schools Total,School Group 7 � Pupil Capacity 501-1800,MCC Schools,Caldicot School,Supplies & Services,"Equipment, Furniture and Materials",Materials & Consumables.,,18/11/2023,28/11/2023,13.32,,Amazon Payments UK Limited
Schools Total,School Group 7 � Pupil Capacity 501-1800,MCC Schools,Caldicot School,Supplies & Services,"Equipment, Furniture and Materials",Materials & Consumables.,,14/11/2023,28/11/2023,15.08,,Amazon Payments UK Limited
Schools Total,School Group 7 � Pupil Capacity 501-1800,MCC Schools,Caldicot School,Supplies & Services,"Equipment, Furniture and Materials",Materials & Consumables.,,14/11/2023,28/11/2023,3.92,,Amazon Payments UK Limited
Schools Total,School Group 7 � Pupil Capacity 501-1800,MCC Schools,Caldicot School,Supplies & Services,"Equipment, Furniture and Materials",Materials & Consumables.,,14/11/2023,28/11/2023,7.49,,Amazon Payments UK Limited
Schools Total,School Group 7 � Pupil Capacity 501-1800,MCC Schools,Caldicot School,Supplies & Services,"Equipment, Furniture and Materials",Materials & Consumables.,,16/11/2023,28/11/2023,3.57,,Amazon Payments UK Limited
Schools Total,School Group 7 � Pupil Capacity 501-1800,MCC Schools,Caldicot School,Supplies & Services,"Equipment, Furniture and Materials",Materials & Consumables.,,17/11/2023,28/11/2023,26.89,,Amazon Payments UK Limited
Schools Total,School Group 7 � Pupil Capacity 501-1800,MCC Schools,Monmouth Comprehensive,Supplies & Services,"Equipment, Furniture and Materials",Materials & Consumables.,,21/11/2023,01/12/2023,21.47,,REDACTED DATA
Schools Total,School Group 7 � Pupil Capacity 501-1800,MCC Schools,Monmouth Comprehensive,Supplies & Services,"Equipment, Furniture and Materials",Materials & Consumables.,,21/11/2023,01/12/2023,15.99,,REDACTED DATA
Schools Total,School Group 7 � Pupil Capacity 501-1800,MCC Schools,Monmouth Comprehensive,Supplies & Services,"Equipment, Furniture and Materials",Materials & Consumables.,,21/11/2023,01/12/2023,40.44,,REDACTED DATA
Schools Total,School Group 7 � Pupil Capacity 501-1800,MCC Schools,Monmouth Comprehensive,Supplies & Services,"Equipment, Furniture and Materials",Materials & Consumables.,,21/11/2023,01/12/2023,24,,REDACTED DATA
"Commercial, Corporate & landlord Services",Property Services & Facilities Management,Resources,Gwent Police Collaboration,Premises,"Repairs, Alterations & Maintenance of Buildings",Building Improvements / Maintenance,,29/11/2023,01/12/2023,91.66,,Gemini Blinds Gwent
Children Services,Children Services Other,Social Care and Health,Counsel Costs,Supplies & Services,Services,Professional And Specialist Fees,,13/11/2023,01/12/2023,32.17,,Marten Walsh Cherer Ltd
"Placemaking, Highways & Flooding",Development Management & Building Control,Communities & Place,Development Management,Supplies & Services,Services,Training Charges,,13/10/2023,01/12/2023,2362.5,,Cardiff University
Children Services,Children Services Other,Social Care and Health,Counsel Costs,Supplies & Services,Services,Professional And Specialist Fees,,29/09/2023,01/12/2023,469.6,,REDACTED PERSONAL DATA
Children Services,Children Services Other,Social Care and Health,Counsel Costs,Supplies & Services,Services,Professional And Specialist Fees,,29/09/2023,01/12/2023,-232,,REDACTED PERSONAL DATA
Children Services,Children Services Other,Social Care and Health,Counsel Costs,Supplies & Services,Services,Professional And Specialist Fees,,29/09/2023,01/12/2023,232,,REDACTED PERSONAL DATA
Schools Total,School Group 2 � Pupil Capacity 144-314,MCC Schools,Usk CiW Primary School (VC),Employees,Direct Employee Expenses,Agency Staff,,21/11/2023,01/12/2023,115.08,,TeacherActive
Schools Total,School Group 7 � Pupil Capacity 501-1800,MCC Schools,Monmouth Comprehensive,Third Party Payments,Third Party,School Meal Service,,29/09/2023,24/11/2023,2907.85,,Aramark Plc
Schools Total,School Group 7 � Pupil Capacity 501-1800,MCC Schools,Monmouth Comprehensive,Third Party Payments,Third Party,School Meal Service,,29/09/2023,24/11/2023,40784.66,,Aramark Plc
Schools Total,School Group 7 � Pupil Capacity 501-1800,MCC Schools,Monmouth Comprehensive,Third Party Payments,Third Party,School Meal Service,,29/09/2023,24/11/2023,-40784.66,,Aramark Plc
Schools Total,School Group 7 � Pupil Capacity 501-1800,MCC Schools,Monmouth Comprehensive,Third Party Payments,Third Party,School Meal Service,,29/09/2023,24/11/2023,-46528.79,,Aramark Plc
Schools Total,School Group 7 � Pupil Capacity 501-1800,MCC Schools,Monmouth Comprehensive,Third Party Payments,Third Party,School Meal Service,,29/09/2023,24/11/2023,46528.79,,Aramark Plc
Children Services,Children Services Other,Social Care and Health,Counsel Costs,Supplies & Services,Services,Professional And Specialist Fees,,23/10/2023,01/11/2023,140.4,,REDACTED PERSONAL DATA
Children Services,Children Services Other,Social Care and Health,Counsel Costs,Supplies & Services,Services,Professional And Specialist Fees,,22/09/2023,01/11/2023,210,,Reynolds Confidential Ltd
Children Services,Children Services Other,Social Care and Health,Counsel Costs,Supplies & Services,Services,Professional And Specialist Fees,,10/10/2023,01/11/2023,851.75,,Lextox
Children Services,Children Services Other,Social Care and Health,Counsel Costs,Supplies & Services,Services,Professional And Specialist Fees,,17/10/2023,01/11/2023,93.5,,Atkinson Lewis Limited
Children Services,Children Services Other,Social Care and Health,Counsel Costs,Supplies & Services,Services,Professional And Specialist Fees,,20/10/2023,01/11/2023,931.34,,Lextox
Schools Total,School Group 2 � Pupil Capacity 144-314,MCC Schools,Usk CiW Primary School (VC),Employees,Direct Employee Expenses,Agency Staff,,17/10/2023,06/11/2023,912.56,,TeacherActive
Schools Total,School Group 2 � Pupil Capacity 144-314,MCC Schools,Usk CiW Primary School (VC),Employees,Direct Employee Expenses,Agency Staff,,26/09/2023,06/11/2023,456.28,,TeacherActive
Schools Total,School Group 2 � Pupil Capacity 144-314,MCC Schools,Usk CiW Primary School (VC),Employees,Direct Employee Expenses,Agency Staff,,03/10/2023,06/11/2023,912.56,,TeacherActive
"Commercial, Corporate & landlord Services",Property Services & Facilities Management,Resources,Gwent Police Collaboration,Premises,"Repairs, Alterations & Maintenance of Buildings",Building Improvements / Maintenance,,07/11/2023,08/11/2023,2900,,Power Solutions
"Policy, Scrutiny & Customer Service",Policy And Partnerships,Chief Executive's Unit,Partnerships Management,Supplies & Services,Services,Professional And Specialist Fees,,07/11/2023,08/11/2023,2000,,Basecamp Chepstow
Neighbourhood Services,Highways,Communities & Place,Overhead - Mon Highways,Supplies & Services,Services,Sub-Contractors Fees,,07/08/2023,08/11/2023,525,,Mayglothling Waste Limited
Standards,Early Years,Children & Young People,Early Years Transformation Grant,Supplies & Services,Services,Training Charges,,07/11/2023,08/11/2023,810,,Family Links
Schools Total,School Group 2 � Pupil Capacity 144-314,MCC Schools,Llantilio Pertholey CiW Primary School (VC),Employees,Direct Employee Expenses,Agency Staff,,17/10/2023,09/11/2023,2244.31,,TeacherActive
Standards,Additional Learning Needs,Children & Young People,Additional Learning Needs Administration Service,Employees,Direct Employee Expenses,Agency Staff,,11/10/2023,06/11/2023,129.33,,Back Office Support Services Ltd (Education Supply Pool)
Standards,Additional Learning Needs,Children & Young People,Additional Learning Needs Administration Service,Employees,Direct Employee Expenses,Agency Staff,,25/10/2023,06/11/2023,1980,,Precision Resource Group Ltd
"Commercial, Corporate & landlord Services",Property Services & Facilities Management,Resources,Gwent Police Collaboration,Premises,"Repairs, Alterations & Maintenance of Buildings",Building Improvements / Maintenance,,31/10/2023,06/11/2023,95,,Industrial Door Services
Neighbourhood Services,Highways,Communities & Place,Task Orders,Supplies & Services,"Equipment, Furniture and Materials",Materials & Consumables.,,28/09/2023,06/11/2023,1318,,Tarmac Ltd
Neighbourhood Services,Highways,Communities & Place,Task Orders,Supplies & Services,"Equipment, Furniture and Materials",Materials & Consumables.,,21/09/2023,06/11/2023,900,,Tarmac Ltd
"Commercial, Corporate & landlord Services",Property Services & Facilities Management,Resources,Gwent Police Collaboration,Premises,"Repairs, Alterations & Maintenance of Buildings",Building Improvements / Maintenance,,31/10/2023,06/11/2023,210,,Industrial Door Services
"Commercial, Corporate & landlord Services",Property Services & Facilities Management,Resources,Gwent Police Collaboration,Premises,"Repairs, Alterations & Maintenance of Buildings",Building Improvements / Maintenance,,31/10/2023,06/11/2023,65,,Industrial Door Services
"Commercial, Corporate & landlord Services",Property Services & Facilities Management,Resources,Gwent Police Collaboration,Premises,"Repairs, Alterations & Maintenance of Buildings",Building Improvements / Maintenance,,31/10/2023,06/11/2023,120,,Industrial Door Services
Schools Total,SCHGRP3 � School Group 3 � Pupil Capacity 315-500,MCC Schools,Magor CiW Primary School (VA),Supplies & Services,"Printing, Stationery and General Office Expenses",Photocopying.,,08/11/2023,24/11/2023,199.16,,Sharp Business Systems UK plc
Schools Total,School Group 2 � Pupil Capacity 144-314,MCC Schools,Usk CiW Primary School (VC),Supplies & Services,"Printing, Stationery and General Office Expenses",Stationery,,13/10/2023,01/12/2023,16.5,,Complete Business Solutions Group Ltd
Schools Total,School Group 7 � Pupil Capacity 501-1800,MCC Schools,King Henry 3-19 School,Supplies & Services,"Equipment, Furniture and Materials",Equipment Purchases,,08/11/2023,24/11/2023,313.96,,Hope Education Ltd
Schools Total,School Group 7 � Pupil Capacity 501-1800,MCC Schools,King Henry 3-19 School,Supplies & Services,"Equipment, Furniture and Materials",Equipment Purchases,,13/11/2023,24/11/2023,147.98,,Hope Education Ltd
Schools Total,School Group 7 � Pupil Capacity 501-1800,MCC Schools,King Henry 3-19 School,Supplies & Services,"Equipment, Furniture and Materials",Equipment Purchases,,15/11/2023,24/11/2023,149,,Room 40 Ltd
Schools Total,School Group 7 � Pupil Capacity 501-1800,MCC Schools,King Henry 3-19 School,Supplies & Services,"Equipment, Furniture and Materials",Equipment Purchases,,15/11/2023,24/11/2023,59.95,,JFK Binding Supplies Ltd
Schools Total,School Group 7 � Pupil Capacity 501-1800,MCC Schools,King Henry 3-19 School,Supplies & Services,"Equipment, Furniture and Materials",Equipment Purchases,,15/11/2023,24/11/2023,28.75,,JFK Binding Supplies Ltd
Schools Total,School Group 2 � Pupil Capacity 144-314,MCC Schools,Usk CiW Primary School (VC),Supplies & Services,"Printing, Stationery and General Office Expenses",Photocopying.,,26/09/2023,06/11/2023,203.03,,Konica Minolta Bus. Solutions (UK) Ltd
"Facilities, Fleet & Decarbonisation",Transport Department,Communities & Place,Transport,Transport,Direct Transport Costs,All Other Non-Contract Transport Work.,,27/10/2023,17/11/2023,240,,T's Auto Electrics
"Facilities, Fleet & Decarbonisation",Transport Department,Communities & Place,Transport,Transport,Direct Transport Costs,All Other Non-Contract Transport Work.,,23/10/2023,17/11/2023,280,,T's Auto Electrics
"Facilities, Fleet & Decarbonisation",Transport Department,Communities & Place,Transport,Transport,Direct Transport Costs,All Other Non-Contract Transport Work.,,30/10/2023,17/11/2023,340,,T's Auto Electrics
Adult Services,Community Care Team,Social Care and Health,Mental Health Care Team,Third Party Payments,Third Party,Residential.,,01/10/2023,06/11/2023,3584,,Dormy Care - Foxhunters
Adult Services,Community Care Team,Social Care and Health,Monmouth Adult Team,Third Party Payments,Third Party,Residential.,,01/10/2023,03/11/2023,3206.99,,"Faithfull House, Lilian Faithfull Homes"
Adult Services,Community Care Team,Social Care and Health,Chepstow Adult Team,Third Party Payments,Third Party,Residential.,,01/10/2023,03/11/2023,5109.61,,Accomplish Group
Adult Services,Community Care Team,Social Care and Health,Chepstow Adult Team,Third Party Payments,Third Party,Residential.,,23/10/2023,03/11/2023,6562.28,,HURST HALL CARE HOME
Adult Services,Community Care Team,Social Care and Health,Chepstow Adult Team,Third Party Payments,Third Party,Nursing.,,31/10/2023,03/11/2023,8307.04,,Leonard Cheshire Disability
Adult Services,ADULT DISABILITY SERVICES,Social Care and Health,CLDT,Third Party Payments,Third Party,Residential.,,26/10/2023,03/11/2023,2264.5,,Blaenau Gwent County Borough Council
Adult Services,ADULT DISABILITY SERVICES,Social Care and Health,CLDT,Third Party Payments,Third Party,Residential.,,31/10/2023,03/11/2023,13723.32,,REDACTED PERSONAL DATA
Adult Services,ADULT DISABILITY SERVICES,Social Care and Health,CLDT,Third Party Payments,Third Party,Residential.,,01/10/2023,03/11/2023,2984.86,,Pen-y-Bont Care Home
Adult Services,ADULT DISABILITY SERVICES,Social Care and Health,Resettlement,Third Party Payments,Third Party,Residential.,,31/10/2023,03/11/2023,15595.32,,REDACTED PERSONAL DATA
Adult Services,Community Care Team,Social Care and Health,Mental Health Care Team,Third Party Payments,Third Party,Residential.,,20/10/2023,03/11/2023,6324.31,,Forward(Wales) Ltd
Adult Services,Community Care Team,Social Care and Health,Monmouth Adult Team,Third Party Payments,Third Party,Nursing.,,03/10/2023,03/11/2023,4096.43,,Ty Hafod Care Ltd
Adult Services,Community Care Team,Social Care and Health,Monmouth Adult Team,Third Party Payments,Third Party,Nursing.,,31/10/2023,03/11/2023,6684.96,,Leonard Cheshire Disability
Adult Services,Community Care Team,Social Care and Health,Mental Health Care Team,Third Party Payments,Third Party,Nursing.,,04/09/2023,03/11/2023,4380.43,,Clearwater Care(Leadon Court)Ltd
Schools Total,School Group 2 � Pupil Capacity 144-314,MCC Schools,Archbishop Rowan Williams CiW Primary School (VA),Supplies & Services,"Equipment, Furniture and Materials",Equipment Purchases,,27/09/2023,08/11/2023,3.96,,Amazon Payments UK Limited
